Workbook

Sheet Statistics (hidden)
D5: Name Number | I5: Average profitability & expense percentages for U.S. small businesses* | M5: Average profitability & expense percentages for U.S. small businesses* | Q5: Average profitability & expense percentages for U.S. small businesses* | U5: Average profitability & expense percentages for U.S. small businesses* | Y5: Average profitability & expense percentages for U.S. small businesses* | AC5: Average profitability & expense percentages for U.S. small businesses* | AG5: Average profitability & expense percentages for U.S. small businesses* | AK5: Average profitability & expense percentages for U.S. small businesses* | AO5: Average profitability & expense percentages for U.S. small businesses* | AS5: Average profitability & expense percentages for U.S. small businesses* | AW5: Average profitability & expense percentages for U.S. small businesses* | BA5: Average profitability & expense percentages for U.S. small businesses* | BE5: Average profitability & expense percentages for U.S. small businesses* | BI5: Average profitability & expense percentages for U.S. small businesses* | BM5: Average profitability & expense percentages for U.S. small businesses* | BQ5: Average profitability & expense percentages for U.S. small businesses* | BU5: Average profitability & expense percentages for U.S. small businesses* | BY5: Average profitability & expense percentages for U.S. small businesses* | CC5: Average profitability & expense percentages for U.S. small businesses* | CG5: Average profitability & expense percentages for U.S. small businesses* | CK5: Average profitability & expense percentages for U.S. small businesses* | CO5: Average profitability & expense percentages for U.S. small businesses* | CS5: Average profitability & expense percentages for U.S. small businesses* | CW5: Average profitability & expense percentages for U.S. small businesses* | DA5: Average profitability & expense percentages for U.S. small businesses* | DE5: Average profitability & expense percentages for U.S. small businesses* | DI5: Average profitability & expense percentages for U.S. small businesses* | DM5: Average profitability & expense percentages for U.S. small businesses* | DQ5: Average profitability & expense percentages for U.S. small businesses* | DU5: Average profitability & expense percentages for U.S. small businesses* | DY5: Average profitability & expense percentages for U.S. small businesses* | EC5: Average profitability & expense percentages for U.S. small businesses* | EG5: Average profitability & expense percentages for U.S. small businesses* | EK5: Average profitability & expense percentages for U.S. small businesses* | EO5: Average profitability & expense percentages for U.S. small businesses* | ES5: Average profitability & expense percentages for U.S. small businesses* | EW5: Average profitability & expense percentages for U.S. small businesses* | FA5: Average profitability & expense percentages for U.S. small businesses* | FE5: Average profitability & expense percentages for U.S. small businesses* | FI5: Average profitability & expense percentages for U.S. small businesses* | FM5: Average profitability & expense percentages for U.S. small businesses* | FQ5: Average profitability & expense percentages for U.S. small businesses* | FU5: Average profitability & expense percentages for U.S. small businesses* | FY5: Average profitability & expense percentages for U.S. small businesses* | GC5: Average profitability & expense percentages for U.S. small businesses* | GG5: Average profitability & expense percentages for U.S. small businesses* | GK5: Average profitability & expense percentages for U.S. small businesses*
C6: 1 | D6: 1 | E6: ) | F6: Construction - Nonresidential Buildings | I6: Construction - Nonresidential Buildings | J6: $ | K6: % | M6: Construction - Heavy Construction | N6: $ | O6: % | Q6: Construction - Residential Buildings | R6: $ | S6: % | U6: Construction - Special Trade Contractors | V6: $ | W6: % | Y6: Health Services - Chiropractors | Z6: $ | AA6: % | AC6: Health Services - Day Care | AD6: $ | AE6: % | AG6: Health Services - Dentists | AH6: $ | AI6: % | AK6: Health Services - Home Health Care Services | AL6: $ | AM6: % | AO6: Health Services - Mental Health & Social Therapists | AP6: $ | AQ6: % | AS6: Health Services - Nursing & Residential Care | AT6: $ | AU6: % | AW6: Health Services - Optometrists | AX6: $ | AY6: % | BA6: Health Services - Physicians | BB6: $ | BC6: % | BE6: Health Services - Podiatrists | BF6: $ | BG6: % | BI6: Health Services - Psychiatrists | BJ6: $ | BK6: % | BM6: Health Services - Social Assistance | BN6: $ | BO6: % | BQ6: Manufacturing - Apparel | BR6: $ | BS6: % | BU6: Manufacturing - Fabricated Metal Products | BV6: $ | BW6: % | BY6: Manufacturing - Food Products | BZ6: $ | CA6: % | CC6: Manufacturing - Furniture & Related Products | CD6: $ | CE6: % | CG6: Manufacturing - Machinery | CH6: $ | CI6: % | CK6: Manufacturing - Printing & Related Activities | CL6: $ | CM6: % | CO6: Manufacturing - Wood Products | CP6: $ | CQ6: % | CS6: Other Services - Auto Oil Change, Car Washes & Related Services | CT6: $ | CU6: % | CW6: Other Services - Automotive Body Shops | CX6: $ | CY6: % | DA6: Other Services - Automotive Mechanical & Electrical Repair | DB6: $ | DC6: % | DE6: Other Services - Hotels & Inns | DF6: $ | DG6: % | DI6: Other Services - Miscellaneous Repair Services | DJ6: $ | DK6: % | DM6: Other Services - Personal & Laundry Services | DN6: $ | DO6: % | DQ6: Retailing - Building Materials & Garden Supplies | DR6: $ | DS6: % | DU6: Retailing - Catalog & Multi-level Marketing | DV6: $ | DW6: % | DY6: Retailing - Clothing & Accessories | DZ6: $ | EA6: % | EC6: Retailing - Electronics & Appliances | ED6: $ | EE6: % | EG6: Retailing - Furniture & Home Furnishings | EH6: $ | EI6: % | EK6: Retailing - Gasoline Stations | EL6: $ | EM6: % | EO6: Retailing - General Merchandise | EP6: $ | EQ6: % | ES6: Retailing - Grocery & Beverage Stores | ET6: $ | EU6: % | EW6: Retailing - Health & Personal Care Stores | EX6: $ | EY6: % | FA6: Retailing - Motor Vehicles & Parts | FB6: $ | FC6: % | FE6: Retailing - Other Retail Products | FF6: $ | FG6: % | FI6: Retailing - Restaurants & Drinking Places | FJ6: $ | FK6: % | FM6: Retailing - Sporting Goods, Hobbies, Books & Music | FN6: $ | FO6: % | FQ6: Services - Administrative & Personnel Support | FR6: $ | FS6: % | FU6: Services - Advertising & Related Services | FV6: $ | FW6: % | FY6: Services - Architectural Services | FZ6: $ | GA6: % | GC6: Services - Certified Public Accountants | GD6: $ | GE6: % | GG6: Services - Computer Programming & Systems Design | GH6: $ | GI6: % | GK6: Services - Drafting & Related Services | GL6: $ | GM6: %
C7: 2 | D7: 2 | E7: ) | F7: Construction - Heavy Construction
C8: 3 | D8: 3 | E8: ) | F8: Construction - Residential Buildings | I8: Total Revenue (Sales) | J8: 1000000 | K8: 1 | M8: Total Revenue (Sales) | N8: 1000000 | O8: 1 | Q8: Total Revenue (Sales) | R8: 1000000 | S8: 1 | U8: Total Revenue (Sales) | V8: 1000000 | W8: 1 | Y8: Total Revenue (Sales) | Z8: 1000000 | AA8: 1 | AC8: Total Revenue (Sales) | AD8: 1000000 | AE8: 1 | AG8: Total Revenue (Sales) | AH8: 1000000 | AI8: 1 | AK8: Total Revenue (Sales) | AL8: 1000000 | AM8: 1 | AO8: Total Revenue (Sales) | AP8: 1000000 | AQ8: 1 | AS8: Total Revenue (Sales) | AT8: 1000000 | AU8: 1 | AW8: Total Revenue (Sales) | AX8: 1000000 | AY8: 1 | BA8: Total Revenue (Sales) | BB8: 1000000 | BC8: 1 | BE8: Total Revenue (Sales) | BF8: 1000000 | BG8: 1 | BI8: Total Revenue (Sales) | BJ8: 1000000 | BK8: 1 | BM8: Total Revenue (Sales) | BN8: 1000000 | BO8: 1 | BQ8: Total Revenue (Sales) | BR8: 1000000 | BS8: 1 | BU8: Total Revenue (Sales) | BV8: 1000000 | BW8: 1 | BY8: Total Revenue (Sales) | BZ8: 1000000 | CA8: 1 | CC8: Total Revenue (Sales) | CD8: 1000000 | CE8: 1 | CG8: Total Revenue (Sales) | CH8: 1000000 | CI8: 1 | CK8: Total Revenue (Sales) | CL8: 1000000 | CM8: 1 | CO8: Total Revenue (Sales) | CP8: 1000000 | CQ8: 1 | CS8: Total Revenue (Sales) | CT8: 1000000 | CU8: 1 | CW8: Total Revenue (Sales) | CX8: 1000000 | CY8: 1 | DA8: Total Revenue (Sales) | DB8: 1000000 | DC8: 1 | DE8: Total Revenue (Sales) | DF8: 1000000 | DG8: 1 | DI8: Total Revenue (Sales) | DJ8: 1000000 | DK8: 1 | DM8: Total Revenue (Sales) | DN8: 1000000 | DO8: 1 | DQ8: Total Revenue (Sales) | DR8: 1000000 | DS8: 1 | DU8: Total Revenue (Sales) | DV8: 1000000 | DW8: 1 | DY8: Total Revenue (Sales) | DZ8: 1000000 | EA8: 1 | EC8: Total Revenue (Sales) | ED8: 1000000 | EE8: 1 | EG8: Total Revenue (Sales) | EH8: 1000000 | EI8: 1 | EK8: Total Revenue (Sales) | EL8: 1000000 | EM8: 1 | EO8: Total Revenue (Sales) | EP8: 1000000 | EQ8: 1 | ES8: Total Revenue (Sales) | ET8: 1000000 | EU8: 1 | EW8: Total Revenue (Sales) | EX8: 1000000 | EY8: 1 | FA8: Total Revenue (Sales) | FB8: 1000000 | FC8: 1 | FE8: Total Revenue (Sales) | FF8: 1000000 | FG8: 1 | FI8: Total Revenue (Sales) | FJ8: 1000000 | FK8: 1 | FM8: Total Revenue (Sales) | FN8: 1000000 | FO8: 1 | FQ8: Total Revenue (Sales) | FR8: 1000000 | FS8: 1 | FU8: Total Revenue (Sales) | FV8: 1000000 | FW8: 1 | FY8: Total Revenue (Sales) | FZ8: 1000000 | GA8: 1 | GC8: Total Revenue (Sales) | GD8: 1000000 | GE8: 1 | GG8: Total Revenue (Sales) | GH8: 1000000 | GI8: 1 | GK8: Total Revenue (Sales) | GL8: 1000000 | GM8: 1
C9: 4 | D9: 4 | E9: ) | F9: Construction - Special Trade Contractors | I9: Total Expenses as % of Revenue | J9: 842124 | K9: 0.842 | M9: Total Expenses as % of Revenue | N9: 858109 | O9: 0.858 | Q9: Total Expenses as % of Revenue | R9: 838224 | S9: 0.838 | U9: Total Expenses as % of Revenue | V9: 757353 | W9: 0.757 | Y9: Total Expenses as % of Revenue | Z9: 584079 | AA9: 0.584 | AC9: Total Expenses as % of Revenue | AD9: 539842 | AE9: 0.54 | AG9: Total Expenses as % of Revenue | AH9: 622080 | AI9: 0.622 | AK9: Total Expenses as % of Revenue | AL9: 498998 | AM9: 0.499 | AO9: Total Expenses as % of Revenue | AP9: 457618 | AQ9: 0.458 | AS9: Total Expenses as % of Revenue | AT9: 671897 | AU9: 0.672 | AW9: Total Expenses as % of Revenue | AX9: 731652 | AY9: 0.732 | BA9: Total Expenses as % of Revenue | BB9: 437726 | BC9: 0.438 | BE9: Total Expenses as % of Revenue | BF9: 588608 | BG9: 0.589 | BI9: Total Expenses as % of Revenue | BJ9: 405253 | BK9: 0.405 | BM9: Total Expenses as % of Revenue | BN9: 428987 | BO9: 0.429 | BQ9: Total Expenses as % of Revenue | BR9: 875119 | BS9: 0.875 | BU9: Total Expenses as % of Revenue | BV9: 813120 | BW9: 0.813 | BY9: Total Expenses as % of Revenue | BZ9: 847921 | CA9: 0.848 | CC9: Total Expenses as % of Revenue | CD9: 781491 | CE9: 0.781 | CG9: Total Expenses as % of Revenue | CH9: 761718 | CI9: 0.762 | CK9: Total Expenses as % of Revenue | CL9: 817641 | CM9: 0.818 | CO9: Total Expenses as % of Revenue | CP9: 902072 | CQ9: 0.902 | CS9: Total Expenses as % of Revenue | CT9: 836264 | CU9: 0.836 | CW9: Total Expenses as % of Revenue | CX9: 839785 | CY9: 0.84 | DA9: Total Expenses as % of Revenue | DB9: 838439 | DC9: 0.838 | DE9: Total Expenses as % of Revenue | DF9: 843426 | DG9: 0.843 | DI9: Total Expenses as % of Revenue | DJ9: 732158 | DK9: 0.732 | DM9: Total Expenses as % of Revenue | DN9: 636208 | DO9: 0.636 | DQ9: Total Expenses as % of Revenue | DR9: 896050 | DS9: 0.896 | DU9: Total Expenses as % of Revenue | DV9: 761829 | DW9: 0.762 | DY9: Total Expenses as % of Revenue | DZ9: 863056 | EA9: 0.863 | EC9: Total Expenses as % of Revenue | ED9: 876746 | EE9: 0.877 | EG9: Total Expenses as % of Revenue | EH9: 868730 | EI9: 0.869 | EK9: Total Expenses as % of Revenue | EL9: 967197 | EM9: 0.967 | EO9: Total Expenses as % of Revenue | EP9: 898081 | EQ9: 0.898 | ES9: Total Expenses as % of Revenue | ET9: 939532 | EU9: 0.94 | EW9: Total Expenses as % of Revenue | EX9: 842782 | EY9: 0.843 | FA9: Total Expenses as % of Revenue | FB9: 936048 | FC9: 0.936 | FE9: Total Expenses as % of Revenue | FF9: 865438 | FG9: 0.865 | FI9: Total Expenses as % of Revenue | FJ9: 891204 | FK9: 0.891 | FM9: Total Expenses as % of Revenue | FN9: 875434 | FO9: 0.875 | FQ9: Total Expenses as % of Revenue | FR9: 645234 | FS9: 0.645 | FU9: Total Expenses as % of Revenue | FV9: 693731 | FW9: 0.694 | FY9: Total Expenses as % of Revenue | FZ9: 670811 | GA9: 0.671 | GC9: Total Expenses as % of Revenue | GD9: 545758 | GE9: 0.546 | GG9: Total Expenses as % of Revenue | GH9: 507771 | GI9: 0.508 | GK9: Total Expenses as % of Revenue | GL9: 392262 | GM9: 0.392
C10: 5 | D10: 5 | E10: ) | F10: Health Services - Chiropractors | I10: Net Income to Owner as % of Revenue | J10: 157876 | K10: 0.158 | M10: Net Income to Owner as % of Revenue | N10: 141891 | O10: 0.142 | Q10: Net Income to Owner as % of Revenue | R10: 161776 | S10: 0.162 | U10: Net Income to Owner as % of Revenue | V10: 242647 | W10: 0.243 | Y10: Net Income to Owner as % of Revenue | Z10: 415921 | AA10: 0.416 | AC10: Net Income to Owner as % of Revenue | AD10: 460158 | AE10: 0.46 | AG10: Net Income to Owner as % of Revenue | AH10: 377920 | AI10: 0.378 | AK10: Net Income to Owner as % of Revenue | AL10: 501002 | AM10: 0.501 | AO10: Net Income to Owner as % of Revenue | AP10: 542382 | AQ10: 0.542 | AS10: Net Income to Owner as % of Revenue | AT10: 328103 | AU10: 0.328 | AW10: Net Income to Owner as % of Revenue | AX10: 268348 | AY10: 0.268 | BA10: Net Income to Owner as % of Revenue | BB10: 562274 | BC10: 0.562 | BE10: Net Income to Owner as % of Revenue | BF10: 411392 | BG10: 0.411 | BI10: Net Income to Owner as % of Revenue | BJ10: 594747 | BK10: 0.595 | BM10: Net Income to Owner as % of Revenue | BN10: 571013 | BO10: 0.571 | BQ10: Net Income to Owner as % of Revenue | BR10: 124881 | BS10: 0.125 | BU10: Net Income to Owner as % of Revenue | BV10: 186880 | BW10: 0.187 | BY10: Net Income to Owner as % of Revenue | BZ10: 152079 | CA10: 0.152 | CC10: Net Income to Owner as % of Revenue | CD10: 218509 | CE10: 0.219 | CG10: Net Income to Owner as % of Revenue | CH10: 238282 | CI10: 0.238 | CK10: Net Income to Owner as % of Revenue | CL10: 182359 | CM10: 0.182 | CO10: Net Income to Owner as % of Revenue | CP10: 97928 | CQ10: 0.098 | CS10: Net Income to Owner as % of Revenue | CT10: 163736 | CU10: 0.164 | CW10: Net Income to Owner as % of Revenue | CX10: 160215 | CY10: 0.16 | DA10: Net Income to Owner as % of Revenue | DB10: 161561 | DC10: 0.162 | DE10: Net Income to Owner as % of Revenue | DF10: 156574 | DG10: 0.157 | DI10: Net Income to Owner as % of Revenue | DJ10: 267842 | DK10: 0.268 | DM10: Net Income to Owner as % of Revenue | DN10: 363792 | DO10: 0.364 | DQ10: Net Income to Owner as % of Revenue | DR10: 103950 | DS10: 0.104 | DU10: Net Income to Owner as % of Revenue | DV10: 238171 | DW10: 0.238 | DY10: Net Income to Owner as % of Revenue | DZ10: 136944 | EA10: 0.137 | EC10: Net Income to Owner as % of Revenue | ED10: 123254 | EE10: 0.123 | EG10: Net Income to Owner as % of Revenue | EH10: 131270 | EI10: 0.131 | EK10: Net Income to Owner as % of Revenue | EL10: 32803 | EM10: 0.033 | EO10: Net Income to Owner as % of Revenue | EP10: 101919 | EQ10: 0.102 | ES10: Net Income to Owner as % of Revenue | ET10: 60468 | EU10: 0.06 | EW10: Net Income to Owner as % of Revenue | EX10: 157218 | EY10: 0.157 | FA10: Net Income to Owner as % of Revenue | FB10: 63952 | FC10: 0.064 | FE10: Net Income to Owner as % of Revenue | FF10: 134562 | FG10: 0.135 | FI10: Net Income to Owner as % of Revenue | FJ10: 108796 | FK10: 0.109 | FM10: Net Income to Owner as % of Revenue | FN10: 124566 | FO10: 0.125 | FQ10: Net Income to Owner as % of Revenue | FR10: 354766 | FS10: 0.355 | FU10: Net Income to Owner as % of Revenue | FV10: 306269 | FW10: 0.306 | FY10: Net Income to Owner as % of Revenue | FZ10: 329189 | GA10: 0.329 | GC10: Net Income to Owner as % of Revenue | GD10: 454242 | GE10: 0.454 | GG10: Net Income to Owner as % of Revenue | GH10: 492229 | GI10: 0.492 | GK10: Net Income to Owner as % of Revenue | GL10: 607738 | GM10: 0.608
C11: 6 | D11: 6 | E11: ) | F11: Health Services - Day Care
C12: 7 | D12: 7 | E12: ) | F12: Health Services - Dentists | I12: Detail of Expenses (as % of Revenue) | M12: Detail of Expenses (as % of Revenue) | Q12: Detail of Expenses (as % of Revenue) | U12: Detail of Expenses (as % of Revenue) | Y12: Detail of Expenses (as % of Revenue) | AC12: Detail of Expenses (as % of Revenue) | AG12: Detail of Expenses (as % of Revenue) | AK12: Detail of Expenses (as % of Revenue) | AO12: Detail of Expenses (as % of Revenue) | AS12: Detail of Expenses (as % of Revenue) | AW12: Detail of Expenses (as % of Revenue) | BA12: Detail of Expenses (as % of Revenue) | BE12: Detail of Expenses (as % of Revenue) | BI12: Detail of Expenses (as % of Revenue) | BM12: Detail of Expenses (as % of Revenue) | BQ12: Detail of Expenses (as % of Revenue) | BU12: Detail of Expenses (as % of Revenue) | BY12: Detail of Expenses (as % of Revenue) | CC12: Detail of Expenses (as % of Revenue) | CG12: Detail of Expenses (as % of Revenue) | CK12: Detail of Expenses (as % of Revenue) | CO12: Detail of Expenses (as % of Revenue) | CS12: Detail of Expenses (as % of Revenue) | CW12: Detail of Expenses (as % of Revenue) | DA12: Detail of Expenses (as % of Revenue) | DE12: Detail of Expenses (as % of Revenue) | DI12: Detail of Expenses (as % of Revenue) | DM12: Detail of Expenses (as % of Revenue) | DQ12: Detail of Expenses (as % of Revenue) | DU12: Detail of Expenses (as % of Revenue) | DY12: Detail of Expenses (as % of Revenue) | EC12: Detail of Expenses (as % of Revenue) | EG12: Detail of Expenses (as % of Revenue) | EK12: Detail of Expenses (as % of Revenue) | EO12: Detail of Expenses (as % of Revenue) | ES12: Detail of Expenses (as % of Revenue) | EW12: Detail of Expenses (as % of Revenue) | FA12: Detail of Expenses (as % of Revenue) | FE12: Detail of Expenses (as % of Revenue) | FI12: Detail of Expenses (as % of Revenue) | FM12: Detail of Expenses (as % of Revenue) | FQ12: Detail of Expenses (as % of Revenue) | FU12: Detail of Expenses (as % of Revenue) | FY12: Detail of Expenses (as % of Revenue) | GC12: Detail of Expenses (as % of Revenue) | GG12: Detail of Expenses (as % of Revenue) | GK12: Detail of Expenses (as % of Revenue)
C13: 8 | D13: 8 | E13: ) | F13: Health Services - Home Health Care Services | I13: Cost of Goods Sold | J13: 582548 | K13: 0.583 | M13: Cost of Goods Sold | N13: 371395 | O13: 0.371 | Q13: Cost of Goods Sold | R13: 605197 | S13: 0.605 | U13: Cost of Goods Sold | V13: 387044 | W13: 0.387 | Y13: Cost of Goods Sold | Z13: 41465 | AA13: 0.041 | AC13: Cost of Goods Sold | AD13: 20479 | AE13: 0.02 | AG13: Cost of Goods Sold | AH13: 70838 | AI13: 0.071 | AK13: Cost of Goods Sold | AL13: 25594 | AM13: 0.026 | AO13: Cost of Goods Sold | AP13: 37620 | AQ13: 0.038 | AS13: Cost of Goods Sold | AT13: 62586 | AU13: 0.063 | AW13: Cost of Goods Sold | AX13: 269718 | AY13: 0.27 | BA13: Cost of Goods Sold | BB13: 24991 | BC13: 0.025 | BE13: Cost of Goods Sold | BF13: 15480 | BG13: 0.015 | BI13: Cost of Goods Sold | BJ13: 18798 | BK13: 0.019 | BM13: Cost of Goods Sold | BN13: 34249 | BO13: 0.034 | BQ13: Cost of Goods Sold | BR13: 448003 | BS13: 0.448 | BU13: Cost of Goods Sold | BV13: 442720 | BW13: 0.443 | BY13: Cost of Goods Sold | BZ13: 629198 | CA13: 0.629 | CC13: Cost of Goods Sold | CD13: 473348 | CE13: 0.473 | CG13: Cost of Goods Sold | CH13: 444141 | CI13: 0.444 | CK13: Cost of Goods Sold | CL13: 417860 | CM13: 0.418 | CO13: Cost of Goods Sold | CP13: 599631 | CQ13: 0.6 | CS13: Cost of Goods Sold | CT13: 358433 | CU13: 0.358 | CW13: Cost of Goods Sold | CX13: 387057 | CY13: 0.387 | DA13: Cost of Goods Sold | DB13: 437294 | DC13: 0.437 | DE13: Cost of Goods Sold | DF13: 123256 | DG13: 0.123 | DI13: Cost of Goods Sold | DJ13: 347620 | DK13: 0.348 | DM13: Cost of Goods Sold | DN13: 138251 | DO13: 0.138 | DQ13: Cost of Goods Sold | DR13: 617793 | DS13: 0.618 | DU13: Cost of Goods Sold | DV13: 458434 | DW13: 0.458 | DY13: Cost of Goods Sold | DZ13: 587397 | EA13: 0.587 | EC13: Cost of Goods Sold | ED13: 626157 | EE13: 0.626 | EG13: Cost of Goods Sold | EH13: 536568 | EI13: 0.537 | EK13: Cost of Goods Sold | EL13: 830674 | EM13: 0.831 | EO13: Cost of Goods Sold | EP13: 651980 | EQ13: 0.652 | ES13: Cost of Goods Sold | ET13: 744101 | EU13: 0.744 | EW13: Cost of Goods Sold | EX13: 615659 | EY13: 0.616 | FA13: Cost of Goods Sold | FB13: 795088 | FC13: 0.795 | FE13: Cost of Goods Sold | FF13: 539950 | FG13: 0.54 | FI13: Cost of Goods Sold | FJ13: 424906 | FK13: 0.425 | FM13: Cost of Goods Sold | FN13: 599663 | FO13: 0.6 | FQ13: Cost of Goods Sold | FR13: 204548 | FS13: 0.205 | FU13: Cost of Goods Sold | FV13: 342589 | FW13: 0.343 | FY13: Cost of Goods Sold | FZ13: 186454 | GA13: 0.186 | GC13: Cost of Goods Sold | GD13: 8410 | GE13: 0.008 | GG13: Cost of Goods Sold | GH13: 245125 | GI13: 0.245 | GK13: Cost of Goods Sold | GL13: 8678 | GM13: 0.009
C14: 9 | D14: 9 | E14: ) | F14: Health Services - Mental Health & Social Therapists | I14: Salaries & Wages | J14: 36821 | K14: 0.037 | M14: Salaries & Wages | N14: 68950 | O14: 0.069 | Q14: Salaries & Wages | R14: 33944 | S14: 0.034 | U14: Salaries & Wages | V14: 64022 | W14: 0.064 | Y14: Salaries & Wages | Z14: 113445 | AA14: 0.113 | AC14: Salaries & Wages | AD14: 42201 | AE14: 0.042 | AG14: Salaries & Wages | AH14: 196924 | AI14: 0.197 | AK14: Salaries & Wages | AL14: 73514 | AM14: 0.074 | AO14: Salaries & Wages | AP14: 45262 | AQ14: 0.045 | AS14: Salaries & Wages | AT14: 159866 | AU14: 0.16 | AW14: Salaries & Wages | AX14: 132002 | AY14: 0.132 | BA14: Salaries & Wages | BB14: 110967 | BC14: 0.111 | BE14: Salaries & Wages | BF14: 115831 | BG14: 0.116 | BI14: Salaries & Wages | BJ14: 78120 | BK14: 0.078 | BM14: Salaries & Wages | BN14: 12552 | BO14: 0.013 | BQ14: Salaries & Wages | BR14: 106184 | BS14: 0.106 | BU14: Salaries & Wages | BV14: 68280 | BW14: 0.068 | BY14: Salaries & Wages | BZ14: 46165 | CA14: 0.046 | CC14: Salaries & Wages | CD14: 40567 | CE14: 0.041 | CG14: Salaries & Wages | CH14: 86402 | CI14: 0.086 | CK14: Salaries & Wages | CL14: 92153 | CM14: 0.092 | CO14: Salaries & Wages | CP14: 42857 | CQ14: 0.043 | CS14: Salaries & Wages | CT14: 100131 | CU14: 0.1 | CW14: Salaries & Wages | CX14: 109163 | CY14: 0.109 | DA14: Salaries & Wages | DB14: 91526 | DC14: 0.092 | DE14: Salaries & Wages | DF14: 106923 | DG14: 0.107 | DI14: Salaries & Wages | DJ14: 41872 | DK14: 0.042 | DM14: Salaries & Wages | DN14: 78921 | DO14: 0.079 | DQ14: Salaries & Wages | DR14: 64950 | DS14: 0.065 | DU14: Salaries & Wages | DV14: 15024 | DW14: 0.015 | DY14: Salaries & Wages | DZ14: 62903 | EA14: 0.063 | EC14: Salaries & Wages | ED14: 73321 | EE14: 0.073 | EG14: Salaries & Wages | EH14: 64108 | EI14: 0.064 | EK14: Salaries & Wages | EL14: 44876 | EM14: 0.045 | EO14: Salaries & Wages | EP14: 53144 | EQ14: 0.053 | ES14: Salaries & Wages | ET14: 49325 | EU14: 0.049 | EW14: Salaries & Wages | EX14: 52760 | EY14: 0.053 | FA14: Salaries & Wages | FB14: 26054 | FC14: 0.026 | FE14: Salaries & Wages | FF14: 64332 | FG14: 0.064 | FI14: Salaries & Wages | FJ14: 154286 | FK14: 0.154 | FM14: Salaries & Wages | FN14: 44193 | FO14: 0.044 | FQ14: Salaries & Wages | FR14: 72315 | FS14: 0.072 | FU14: Salaries & Wages | FV14: 19245 | FW14: 0.019 | FY14: Salaries & Wages | FZ14: 110890 | GA14: 0.111 | GC14: Salaries & Wages | GD14: 145545 | GE14: 0.146 | GG14: Salaries & Wages | GH14: 26617 | GI14: 0.027 | GK14: Salaries & Wages | GL14: 116532 | GM14: 0.117
C15: 10 | D15: 10 | E15: ) | F15: Health Services - Nursing & Residential Care | I15: Advertising | J15: 3115 | K15: 0.003 | M15: Advertising | N15: 2084 | O15: 0.002 | Q15: Advertising | R15: 2489 | S15: 0.002 | U15: Advertising | V15: 5377 | W15: 0.005 | Y15: Advertising | Z15: 24069 | AA15: 0.024 | AC15: Advertising | AD15: 2686 | AE15: 0.003 | AG15: Advertising | AH15: 8915 | AI15: 0.009 | AK15: Advertising | AL15: 2007 | AM15: 0.002 | AO15: Advertising | AP15: 6163 | AQ15: 0.006 | AS15: Advertising | AT15: 3509 | AU15: 0.004 | AW15: Advertising | AX15: 14648 | AY15: 0.015 | BA15: Advertising | BB15: 4422 | BC15: 0.004 | BE15: Advertising | BF15: 13211 | BG15: 0.013 | BI15: Advertising | BJ15: 3718 | BK15: 0.004 | BM15: Advertising | BN15: 7161 | BO15: 0.007 | BQ15: Advertising | BR15: 8467 | BS15: 0.008 | BU15: Advertising | BV15: 6638 | BW15: 0.007 | BY15: Advertising | BZ15: 4096 | CA15: 0.004 | CC15: Advertising | CD15: 4070 | CE15: 0.004 | CG15: Advertising | CH15: 2906 | CI15: 0.003 | CK15: Advertising | CL15: 10741 | CM15: 0.011 | CO15: Advertising | CP15: 7724 | CQ15: 0.008 | CS15: Advertising | CT15: 13176 | CU15: 0.013 | CW15: Advertising | CX15: 9303 | CY15: 0.009 | DA15: Advertising | DB15: 10409 | DC15: 0.01 | DE15: Advertising | DF15: 20014 | DG15: 0.02 | DI15: Advertising | DJ15: 12371 | DK15: 0.012 | DM15: Advertising | DN15: 14035 | DO15: 0.014 | DQ15: Advertising | DR15: 12386 | DS15: 0.012 | DU15: Advertising | DV15: 11043 | DW15: 0.011 | DY15: Advertising | DZ15: 13808 | EA15: 0.014 | EC15: Advertising | ED15: 19358 | EE15: 0.019 | EG15: Advertising | EH15: 23708 | EI15: 0.024 | EK15: Advertising | EL15: 1935 | EM15: 0.002 | EO15: Advertising | EP15: 7167 | EQ15: 0.007 | ES15: Advertising | ET15: 3530 | EU15: 0.004 | EW15: Advertising | EX15: 8964 | EY15: 0.009 | FA15: Advertising | FB15: 7286 | FC15: 0.007 | FE15: Advertising | FF15: 15148 | FG15: 0.015 | FI15: Advertising | FJ15: 16200 | FK15: 0.016 | FM15: Advertising | FN15: 12762 | FO15: 0.013 | FQ15: Advertising | FR15: 11241 | FS15: 0.011 | FU15: Advertising | FV15: 27009 | FW15: 0.027 | FY15: Advertising | FZ15: 5311 | GA15: 0.005 | GC15: Advertising | GD15: 7088 | GE15: 0.007 | GG15: Advertising | GH15: 4660 | GI15: 0.005 | GK15: Advertising | GL15: 2447 | GM15: 0.002
C16: 11 | D16: 11 | E16: ) | F16: Health Services - Optometrists | I16: Auto & Truck Expenses | J16: 36033 | K16: 0.036 | M16: Auto & Truck Expenses | N16: 46749 | O16: 0.047 | Q16: Auto & Truck Expenses | R16: 29456 | S16: 0.029 | U16: Auto & Truck Expenses | V16: 56403 | W16: 0.056 | Y16: Auto & Truck Expenses | Z16: 15111 | AA16: 0.015 | AC16: Auto & Truck Expenses | AD16: 33262 | AE16: 0.033 | AG16: Auto & Truck Expenses | AH16: 5028 | AI16: 0.005 | AK16: Auto & Truck Expenses | AL16: 78904 | AM16: 0.079 | AO16: Auto & Truck Expenses | AP16: 33524 | AQ16: 0.034 | AS16: Auto & Truck Expenses | AT16: 37344 | AU16: 0.037 | AW16: Auto & Truck Expenses | AX16: 6480 | AY16: 0.006 | BA16: Auto & Truck Expenses | BB16: 11598 | BC16: 0.012 | BE16: Auto & Truck Expenses | BF16: 17844 | BG16: 0.018 | BI16: Auto & Truck Expenses | BJ16: 14587 | BK16: 0.015 | BM16: Auto & Truck Expenses | BN16: 66501 | BO16: 0.067 | BQ16: Auto & Truck Expenses | BR16: 14674 | BS16: 0.015 | BU16: Auto & Truck Expenses | BV16: 23111 | BW16: 0.023 | BY16: Auto & Truck Expenses | BZ16: 17284 | CA16: 0.017 | CC16: Auto & Truck Expenses | CD16: 42810 | CE16: 0.043 | CG16: Auto & Truck Expenses | CH16: 20572 | CI16: 0.021 | CK16: Auto & Truck Expenses | CL16: 28721 | CM16: 0.029 | CO16: Auto & Truck Expenses | CP16: 21271 | CQ16: 0.021 | CS16: Auto & Truck Expenses | CT16: 35758 | CU16: 0.036 | CW16: Auto & Truck Expenses | CX16: 28483 | CY16: 0.028 | DA16: Auto & Truck Expenses | DB16: 21771 | DC16: 0.022 | DE16: Auto & Truck Expenses | DF16: 15176 | DG16: 0.015 | DI16: Auto & Truck Expenses | DJ16: 63682 | DK16: 0.064 | DM16: Auto & Truck Expenses | DN16: 35572 | DO16: 0.036 | DQ16: Auto & Truck Expenses | DR16: 23173 | DS16: 0.023 | DU16: Auto & Truck Expenses | DV16: 65005 | DW16: 0.065 | DY16: Auto & Truck Expenses | DZ16: 12514 | EA16: 0.013 | EC16: Auto & Truck Expenses | ED16: 10075 | EE16: 0.01 | EG16: Auto & Truck Expenses | EH16: 25135 | EI16: 0.025 | EK16: Auto & Truck Expenses | EL16: 2087 | EM16: 0.002 | EO16: Auto & Truck Expenses | EP16: 10486 | EQ16: 0.01 | ES16: Auto & Truck Expenses | ET16: 5437 | EU16: 0.005 | EW16: Auto & Truck Expenses | EX16: 20241 | EY16: 0.02 | FA16: Auto & Truck Expenses | FB16: 8364 | FC16: 0.008 | FE16: Auto & Truck Expenses | FF16: 18637 | FG16: 0.019 | FI16: Auto & Truck Expenses | FJ16: 11514 | FK16: 0.012 | FM16: Auto & Truck Expenses | FN16: 23866 | FO16: 0.024 | FQ16: Auto & Truck Expenses | FR16: 66036 | FS16: 0.066 | FU16: Auto & Truck Expenses | FV16: 32109 | FW16: 0.032 | FY16: Auto & Truck Expenses | FZ16: 38361 | GA16: 0.038 | GC16: Auto & Truck Expenses | GD16: 34447 | GE16: 0.034 | GG16: Auto & Truck Expenses | GH16: 28576 | GI16: 0.029 | GK16: Auto & Truck Expenses | GL16: 52875 | GM16: 0.053
C17: 12 | D17: 12 | E17: ) | F17: Health Services - Physicians | I17: Depreciation | J17: 21368 | K17: 0.021 | M17: Depreciation | N17: 70982 | O17: 0.071 | Q17: Depreciation | R17: 17690 | S17: 0.018 | U17: Depreciation | V17: 33564 | W17: 0.034 | Y17: Depreciation | Z17: 18604 | AA17: 0.019 | AC17: Depreciation | AD17: 30069 | AE17: 0.03 | AG17: Depreciation | AH17: 29175 | AI17: 0.029 | AK17: Depreciation | AL17: 16907 | AM17: 0.017 | AO17: Depreciation | AP17: 29463 | AQ17: 0.029 | AS17: Depreciation | AT17: 30378 | AU17: 0.03 | AW17: Depreciation | AX17: 27151 | AY17: 0.027 | BA17: Depreciation | BB17: 14072 | BC17: 0.014 | BE17: Depreciation | BF17: 32929 | BG17: 0.033 | BI17: Depreciation | BJ17: 27740 | BK17: 0.028 | BM17: Depreciation | BN17: 16722 | BO17: 0.017 | BQ17: Depreciation | BR17: 19437 | BS17: 0.019 | BU17: Depreciation | BV17: 37635 | BW17: 0.038 | BY17: Depreciation | BZ17: 12216 | CA17: 0.012 | CC17: Depreciation | CD17: 18670 | CE17: 0.019 | CG17: Depreciation | CH17: 46219 | CI17: 0.046 | CK17: Depreciation | CL17: 20744 | CM17: 0.021 | CO17: Depreciation | CP17: 37246 | CQ17: 0.037 | CS17: Depreciation | CT17: 41426 | CU17: 0.041 | CW17: Depreciation | CX17: 36938 | CY17: 0.037 | DA17: Depreciation | DB17: 33894 | DC17: 0.034 | DE17: Depreciation | DF17: 72024 | DG17: 0.072 | DI17: Depreciation | DJ17: 38930 | DK17: 0.039 | DM17: Depreciation | DN17: 27030 | DO17: 0.027 | DQ17: Depreciation | DR17: 15119 | DS17: 0.015 | DU17: Depreciation | DV17: 19390 | DW17: 0.019 | DY17: Depreciation | DZ17: 11417 | EA17: 0.011 | EC17: Depreciation | ED17: 14518 | EE17: 0.015 | EG17: Depreciation | EH17: 11835 | EI17: 0.012 | EK17: Depreciation | EL17: 9135 | EM17: 0.009 | EO17: Depreciation | EP17: 12233 | EQ17: 0.012 | ES17: Depreciation | ET17: 9836 | EU17: 0.01 | EW17: Depreciation | EX17: 10473 | EY17: 0.01 | FA17: Depreciation | FB17: 9670 | FC17: 0.01 | FE17: Depreciation | FF17: 15475 | FG17: 0.015 | FI17: Depreciation | FJ17: 22682 | FK17: 0.023 | FM17: Depreciation | FN17: 14771 | FO17: 0.015 | FQ17: Depreciation | FR17: 38897 | FS17: 0.039 | FU17: Depreciation | FV17: 16772 | FW17: 0.017 | FY17: Depreciation | FZ17: 35401 | GA17: 0.035 | GC17: Depreciation | GD17: 30317 | GE17: 0.03 | GG17: Depreciation | GH17: 25256 | GI17: 0.025 | GK17: Depreciation | GL17: 18171 | GM17: 0.018
C18: 13 | D18: 13 | E18: ) | F18: Health Services - Podiatrists | I18: Employee Benefits | J18: 2431 | K18: 0.002 | M18: Employee Benefits | N18: 1602 | O18: 0.002 | Q18: Employee Benefits | R18: 1198 | S18: 0.001 | U18: Employee Benefits | V18: 1460 | W18: 0.001 | Y18: Employee Benefits | Z18: 1841 | AA18: 0.002 | AC18: Employee Benefits | AD18: 1662 | AE18: 0.002 | AG18: Employee Benefits | AH18: 5321 | AI18: 0.005 | AK18: Employee Benefits | AL18: 127 | AM18: 0 | AO18: Employee Benefits | AP18: 1683 | AQ18: 0.002 | AS18: Employee Benefits | AT18: 9783 | AU18: 0.01 | AW18: Employee Benefits | AX18: 3529 | AY18: 0.004 | BA18: Employee Benefits | BB18: 4746 | BC18: 0.005 | BE18: Employee Benefits | BF18: 2132 | BG18: 0.002 | BI18: Employee Benefits | BJ18: 1106 | BK18: 0.001 | BM18: Employee Benefits | BN18: 708 | BO18: 0.001 | BQ18: Employee Benefits | BR18: 2014 | BS18: 0.002 | BU18: Employee Benefits | BV18: 2935 | BW18: 0.003 | BY18: Employee Benefits | BZ18: 842 | CA18: 0.001 | CC18: Employee Benefits | CD18: 853 | CE18: 0.001 | CG18: Employee Benefits | CH18: 12073 | CI18: 0.012 | CK18: Employee Benefits | CL18: 2248 | CM18: 0.002 | CO18: Employee Benefits | CP18: 781 | CQ18: 0.001 | CS18: Employee Benefits | CT18: 2554 | CU18: 0.003 | CW18: Employee Benefits | CX18: 3701 | CY18: 0.004 | DA18: Employee Benefits | DB18: 1984 | DC18: 0.002 | DE18: Employee Benefits | DF18: 1866 | DG18: 0.002 | DI18: Employee Benefits | DJ18: 1121 | DK18: 0.001 | DM18: Employee Benefits | DN18: 724 | DO18: 0.001 | DQ18: Employee Benefits | DR18: 1724 | DS18: 0.002 | DU18: Employee Benefits | DV18: 632 | DW18: 0.001 | DY18: Employee Benefits | DZ18: 536 | EA18: 0.001 | EC18: Employee Benefits | ED18: 3588 | EE18: 0.004 | EG18: Employee Benefits | EH18: 1177 | EI18: 0.001 | EK18: Employee Benefits | EL18: 874 | EM18: 0.001 | EO18: Employee Benefits | EP18: 2994 | EQ18: 0.003 | ES18: Employee Benefits | ET18: 709 | EU18: 0.001 | EW18: Employee Benefits | EX18: 1386 | EY18: 0.001 | FA18: Employee Benefits | FB18: 752 | FC18: 0.001 | FE18: Employee Benefits | FF18: 1365 | FG18: 0.001 | FI18: Employee Benefits | FJ18: 1359 | FK18: 0.001 | FM18: Employee Benefits | FN18: 1183 | FO18: 0.001 | FQ18: Employee Benefits | FR18: 1881 | FS18: 0.002 | FU18: Employee Benefits | FV18: 606 | FW18: 0.001 | FY18: Employee Benefits | FZ18: 5611 | GA18: 0.006 | GC18: Employee Benefits | GD18: 9494 | GE18: 0.009 | GG18: Employee Benefits | GH18: 661 | GI18: 0.001 | GK18: Employee Benefits | GL18: 1059 | GM18: 0.001
C19: 14 | D19: 14 | E19: ) | F19: Health Services - Psychiatrists | I19: Home Office Business Expenses | J19: 1671 | K19: 0.002 | M19: Home Office Business Expenses | N19: 3326 | O19: 0.003 | Q19: Home Office Business Expenses | R19: 2295 | S19: 0.002 | U19: Home Office Business Expenses | V19: 3684 | W19: 0.004 | Y19: Home Office Business Expenses | Z19: 2454 | AA19: 0.002 | AC19: Home Office Business Expenses | AD19: 96515 | AE19: 0.097 | AG19: Home Office Business Expenses | AH19: 290 | AI19: 0 | AK19: Home Office Business Expenses | AL19: 21376 | AM19: 0.021 | AO19: Home Office Business Expenses | AP19: 11793 | AQ19: 0.012 | AS19: Home Office Business Expenses | AT19: 7918 | AU19: 0.008 | AW19: Home Office Business Expenses | AX19: 281 | AY19: 0 | BA19: Home Office Business Expenses | BB19: 1144 | BC19: 0.001 | BE19: Home Office Business Expenses | BF19: 12700 | BG19: 0.013 | BI19: Home Office Business Expenses | BJ19: 6156 | BK19: 0.006 | BM19: Home Office Business Expenses | BN19: 8634 | BO19: 0.009 | BQ19: Home Office Business Expenses | BR19: 8544 | BS19: 0.009 | BU19: Home Office Business Expenses | BV19: 2590 | BW19: 0.003 | BY19: Home Office Business Expenses | BZ19: 944 | CA19: 0.001 | CC19: Home Office Business Expenses | CD19: 3864 | CE19: 0.004 | CG19: Home Office Business Expenses | CH19: 980 | CI19: 0.001 | CK19: Home Office Business Expenses | CL19: 5402 | CM19: 0.005 | CO19: Home Office Business Expenses | CP19: 3986 | CQ19: 0.004 | CS19: Home Office Business Expenses | CT19: 734 | CU19: 0.001 | CW19: Home Office Business Expenses | CX19: 2251 | CY19: 0.002 | DA19: Home Office Business Expenses | DB19: 718 | DC19: 0.001 | DE19: Home Office Business Expenses | DF19: 99 | DG19: 0 | DI19: Home Office Business Expenses | DJ19: 7235 | DK19: 0.007 | DM19: Home Office Business Expenses | DN19: 4491 | DO19: 0.004 | DQ19: Home Office Business Expenses | DR19: 559 | DS19: 0.001 | DU19: Home Office Business Expenses | DV19: 7893 | DW19: 0.008 | DY19: Home Office Business Expenses | DZ19: 715 | EA19: 0.001 | EC19: Home Office Business Expenses | ED19: 981 | EE19: 0.001 | EG19: Home Office Business Expenses | EH19: 3262 | EI19: 0.003 | EK19: Home Office Business Expenses | EL19: 23 | EM19: 0 | EO19: Home Office Business Expenses | EP19: 27 | EQ19: 0 | ES19: Home Office Business Expenses | ET19: 95 | EU19: 0 | EW19: Home Office Business Expenses | EX19: 2025 | EY19: 0.002 | FA19: Home Office Business Expenses | FB19: 83 | FC19: 0 | FE19: Home Office Business Expenses | FF19: 1926 | FG19: 0.002 | FI19: Home Office Business Expenses | FJ19: 787 | FK19: 0.001 | FM19: Home Office Business Expenses | FN19: 3581 | FO19: 0.004 | FQ19: Home Office Business Expenses | FR19: 6284 | FS19: 0.006 | FU19: Home Office Business Expenses | FV19: 8678 | FW19: 0.009 | FY19: Home Office Business Expenses | FZ19: 8146 | GA19: 0.008 | GC19: Home Office Business Expenses | GD19: 11509 | GE19: 0.012 | GG19: Home Office Business Expenses | GH19: 12209 | GI19: 0.012 | GK19: Home Office Business Expenses | GL19: 11438 | GM19: 0.011
C20: 15 | D20: 15 | E20: ) | F20: Health Services - Social Assistance | I20: Insurance | J20: 19165 | K20: 0.019 | M20: Insurance | N20: 26348 | O20: 0.026 | Q20: Insurance | R20: 12824 | S20: 0.013 | U20: Insurance | V20: 19437 | W20: 0.019 | Y20: Insurance | Z20: 25166 | AA20: 0.025 | AC20: Insurance | AD20: 8980 | AE20: 0.009 | AG20: Insurance | AH20: 15594 | AI20: 0.016 | AK20: Insurance | AL20: 10235 | AM20: 0.01 | AO20: Insurance | AP20: 11062 | AQ20: 0.011 | AS20: Insurance | AT20: 16884 | AU20: 0.017 | AW20: Insurance | AX20: 13260 | AY20: 0.013 | BA20: Insurance | BB20: 30669 | BC20: 0.031 | BE20: Insurance | BF20: 54981 | BG20: 0.055 | BI20: Insurance | BJ20: 30880 | BK20: 0.031 | BM20: Insurance | BN20: 8394 | BO20: 0.008 | BQ20: Insurance | BR20: 8356 | BS20: 0.008 | BU20: Insurance | BV20: 13368 | BW20: 0.013 | BY20: Insurance | BZ20: 6941 | CA20: 0.007 | CC20: Insurance | CD20: 6698 | CE20: 0.007 | CG20: Insurance | CH20: 16051 | CI20: 0.016 | CK20: Insurance | CL20: 10891 | CM20: 0.011 | CO20: Insurance | CP20: 12655 | CQ20: 0.013 | CS20: Insurance | CT20: 17427 | CU20: 0.017 | CW20: Insurance | CX20: 17312 | CY20: 0.017 | DA20: Insurance | DB20: 17533 | DC20: 0.018 | DE20: Insurance | DF20: 20550 | DG20: 0.021 | DI20: Insurance | DJ20: 14339 | DK20: 0.014 | DM20: Insurance | DN20: 10210 | DO20: 0.01 | DQ20: Insurance | DR20: 13052 | DS20: 0.013 | DU20: Insurance | DV20: 5186 | DW20: 0.005 | DY20: Insurance | DZ20: 6805 | EA20: 0.007 | EC20: Insurance | ED20: 7997 | EE20: 0.008 | EG20: Insurance | EH20: 8410 | EI20: 0.008 | EK20: Insurance | EL20: 4996 | EM20: 0.005 | EO20: Insurance | EP20: 7602 | EQ20: 0.008 | ES20: Insurance | ET20: 6651 | EU20: 0.007 | EW20: Insurance | EX20: 6247 | EY20: 0.006 | FA20: Insurance | FB20: 6647 | FC20: 0.007 | FE20: Insurance | FF20: 9767 | FG20: 0.01 | FI20: Insurance | FJ20: 13224 | FK20: 0.013 | FM20: Insurance | FN20: 6687 | FO20: 0.007 | FQ20: Insurance | FR20: 16818 | FS20: 0.017 | FU20: Insurance | FV20: 3998 | FW20: 0.004 | FY20: Insurance | FZ20: 17151 | GA20: 0.017 | GC20: Insurance | GD20: 16694 | GE20: 0.017 | GG20: Insurance | GH20: 2980 | GI20: 0.003 | GK20: Insurance | GL20: 6835 | GM20: 0.007
C21: 16 | D21: 16 | E21: ) | F21: Manufacturing - Apparel | I21: Interest Expense | J21: 8066 | K21: 0.008 | M21: Interest Expense | N21: 17736 | O21: 0.018 | Q21: Interest Expense | R21: 6806 | S21: 0.007 | U21: Interest Expense | V21: 6573 | W21: 0.007 | Y21: Interest Expense | Z21: 13098 | AA21: 0.013 | AC21: Interest Expense | AD21: 8784 | AE21: 0.009 | AG21: Interest Expense | AH21: 13385 | AI21: 0.013 | AK21: Interest Expense | AL21: 3784 | AM21: 0.004 | AO21: Interest Expense | AP21: 4135 | AQ21: 0.004 | AS21: Interest Expense | AT21: 38277 | AU21: 0.038 | AW21: Interest Expense | AX21: 14038 | AY21: 0.014 | BA21: Interest Expense | BB21: 5010 | BC21: 0.005 | BE21: Interest Expense | BF21: 13884 | BG21: 0.014 | BI21: Interest Expense | BJ21: 4944 | BK21: 0.005 | BM21: Interest Expense | BN21: 1249 | BO21: 0.001 | BQ21: Interest Expense | BR21: 3178 | BS21: 0.003 | BU21: Interest Expense | BV21: 8406 | BW21: 0.008 | BY21: Interest Expense | BZ21: 9801 | CA21: 0.01 | CC21: Interest Expense | CD21: 8935 | CE21: 0.009 | CG21: Interest Expense | CH21: 11484 | CI21: 0.011 | CK21: Interest Expense | CL21: 12743 | CM21: 0.013 | CO21: Interest Expense | CP21: 12952 | CQ21: 0.013 | CS21: Interest Expense | CT21: 15714 | CU21: 0.016 | CW21: Interest Expense | CX21: 14431 | CY21: 0.014 | DA21: Interest Expense | DB21: 13069 | DC21: 0.013 | DE21: Interest Expense | DF21: 97916 | DG21: 0.098 | DI21: Interest Expense | DJ21: 10965 | DK21: 0.011 | DM21: Interest Expense | DN21: 9324 | DO21: 0.009 | DQ21: Interest Expense | DR21: 15400 | DS21: 0.015 | DU21: Interest Expense | DV21: 5548 | DW21: 0.006 | DY21: Interest Expense | DZ21: 8590 | EA21: 0.009 | EC21: Interest Expense | ED21: 5660 | EE21: 0.006 | EG21: Interest Expense | EH21: 9968 | EI21: 0.01 | EK21: Interest Expense | EL21: 6365 | EM21: 0.006 | EO21: Interest Expense | EP21: 11554 | EQ21: 0.012 | ES21: Interest Expense | ET21: 5422 | EU21: 0.005 | EW21: Interest Expense | EX21: 3628 | EY21: 0.004 | FA21: Interest Expense | FB21: 8509 | FC21: 0.009 | FE21: Interest Expense | FF21: 8106 | FG21: 0.008 | FI21: Interest Expense | FJ21: 12169 | FK21: 0.012 | FM21: Interest Expense | FN21: 8216 | FO21: 0.008 | FQ21: Interest Expense | FR21: 6828 | FS21: 0.007 | FU21: Interest Expense | FV21: 5507 | FW21: 0.006 | FY21: Interest Expense | FZ21: 8439 | GA21: 0.008 | GC21: Interest Expense | GD21: 9779 | GE21: 0.01 | GG21: Interest Expense | GH21: 2198 | GI21: 0.002 | GK21: Interest Expense | GL21: 1522 | GM21: 0.002
C22: 17 | D22: 17 | E22: ) | F22: Manufacturing - Fabricated Metal Products | I22: Legal & Professional Services | J22: 3766 | K22: 0.004 | M22: Legal & Professional Services | N22: 5165 | O22: 0.005 | Q22: Legal & Professional Services | R22: 3858 | S22: 0.004 | U22: Legal & Professional Services | V22: 3542 | W22: 0.004 | Y22: Legal & Professional Services | Z22: 16155 | AA22: 0.016 | AC22: Legal & Professional Services | AD22: 4477 | AE22: 0.004 | AG22: Legal & Professional Services | AH22: 9472 | AI22: 0.009 | AK22: Legal & Professional Services | AL22: 7970 | AM22: 0.008 | AO22: Legal & Professional Services | AP22: 17567 | AQ22: 0.018 | AS22: Legal & Professional Services | AT22: 7460 | AU22: 0.007 | AW22: Legal & Professional Services | AX22: 6273 | AY22: 0.006 | BA22: Legal & Professional Services | BB22: 11820 | BC22: 0.012 | BE22: Legal & Professional Services | BF22: 9972 | BG22: 0.01 | BI22: Legal & Professional Services | BJ22: 11374 | BK22: 0.011 | BM22: Legal & Professional Services | BN22: 15777 | BO22: 0.016 | BQ22: Legal & Professional Services | BR22: 7977 | BS22: 0.008 | BU22: Legal & Professional Services | BV22: 3344 | BW22: 0.003 | BY22: Legal & Professional Services | BZ22: 2744 | CA22: 0.003 | CC22: Legal & Professional Services | CD22: 2786 | CE22: 0.003 | CG22: Legal & Professional Services | CH22: 3474 | CI22: 0.003 | CK22: Legal & Professional Services | CL22: 4315 | CM22: 0.004 | CO22: Legal & Professional Services | CP22: 4165 | CQ22: 0.004 | CS22: Legal & Professional Services | CT22: 15754 | CU22: 0.016 | CW22: Legal & Professional Services | CX22: 5279 | CY22: 0.005 | DA22: Legal & Professional Services | DB22: 5080 | DC22: 0.005 | DE22: Legal & Professional Services | DF22: 9734 | DG22: 0.01 | DI22: Legal & Professional Services | DJ22: 4434 | DK22: 0.004 | DM22: Legal & Professional Services | DN22: 5829 | DO22: 0.006 | DQ22: Legal & Professional Services | DR22: 3162 | DS22: 0.003 | DU22: Legal & Professional Services | DV22: 4716 | DW22: 0.005 | DY22: Legal & Professional Services | DZ22: 4138 | EA22: 0.004 | EC22: Legal & Professional Services | ED22: 2987 | EE22: 0.003 | EG22: Legal & Professional Services | EH22: 5439 | EI22: 0.005 | EK22: Legal & Professional Services | EL22: 1820 | EM22: 0.002 | EO22: Legal & Professional Services | EP22: 2932 | EQ22: 0.003 | ES22: Legal & Professional Services | ET22: 2717 | EU22: 0.003 | EW22: Legal & Professional Services | EX22: 3712 | EY22: 0.004 | FA22: Legal & Professional Services | FB22: 2627 | FC22: 0.003 | FE22: Legal & Professional Services | FF22: 4065 | FG22: 0.004 | FI22: Legal & Professional Services | FJ22: 5843 | FK22: 0.006 | FM22: Legal & Professional Services | FN22: 4246 | FO22: 0.004 | FQ22: Legal & Professional Services | FR22: 6382 | FS22: 0.006 | FU22: Legal & Professional Services | FV22: 7291 | FW22: 0.007 | FY22: Legal & Professional Services | FZ22: 16623 | GA22: 0.017 | GC22: Legal & Professional Services | GD22: 11856 | GE22: 0.012 | GG22: Legal & Professional Services | GH22: 5754 | GI22: 0.006 | GK22: Legal & Professional Services | GL22: 26740 | GM22: 0.027
C23: 18 | D23: 18 | E23: ) | F23: Manufacturing - Food Products | I23: Meals & Entertainment | J23: 2120 | K23: 0.002 | M23: Meals & Entertainment | N23: 1006 | O23: 0.001 | Q23: Meals & Entertainment | R23: 1088 | S23: 0.001 | U23: Meals & Entertainment | V23: 1954 | W23: 0.002 | Y23: Meals & Entertainment | Z23: 4189 | AA23: 0.004 | AC23: Meals & Entertainment | AD23: 2183 | AE23: 0.002 | AG23: Meals & Entertainment | AH23: 2228 | AI23: 0.002 | AK23: Meals & Entertainment | AL23: 7407 | AM23: 0.007 | AO23: Meals & Entertainment | AP23: 5649 | AQ23: 0.006 | AS23: Meals & Entertainment | AT23: 1905 | AU23: 0.002 | AW23: Meals & Entertainment | AX23: 1568 | AY23: 0.002 | BA23: Meals & Entertainment | BB23: 2774 | BC23: 0.003 | BE23: Meals & Entertainment | BF23: 1368 | BG23: 0.001 | BI23: Meals & Entertainment | BJ23: 4153 | BK23: 0.004 | BM23: Meals & Entertainment | BN23: 6016 | BO23: 0.006 | BQ23: Meals & Entertainment | BR23: 1209 | BS23: 0.001 | BU23: Meals & Entertainment | BV23: 1966 | BW23: 0.002 | BY23: Meals & Entertainment | BZ23: 742 | CA23: 0.001 | CC23: Meals & Entertainment | CD23: 950 | CE23: 0.001 | CG23: Meals & Entertainment | CH23: 1178 | CI23: 0.001 | CK23: Meals & Entertainment | CL23: 2102 | CM23: 0.002 | CO23: Meals & Entertainment | CP23: 642 | CQ23: 0.001 | CS23: Meals & Entertainment | CT23: 774 | CU23: 0.001 | CW23: Meals & Entertainment | CX23: 1222 | CY23: 0.001 | DA23: Meals & Entertainment | DB23: 892 | DC23: 0.001 | DE23: Meals & Entertainment | DF23: 2150 | DG23: 0.002 | DI23: Meals & Entertainment | DJ23: 3251 | DK23: 0.003 | DM23: Meals & Entertainment | DN23: 3497 | DO23: 0.003 | DQ23: Meals & Entertainment | DR23: 2232 | DS23: 0.002 | DU23: Meals & Entertainment | DV23: 4299 | DW23: 0.004 | DY23: Meals & Entertainment | DZ23: 1166 | EA23: 0.001 | EC23: Meals & Entertainment | ED23: 990 | EE23: 0.001 | EG23: Meals & Entertainment | EH23: 3765 | EI23: 0.004 | EK23: Meals & Entertainment | EL23: 89 | EM23: 0 | EO23: Meals & Entertainment | EP23: 1644 | EQ23: 0.002 | ES23: Meals & Entertainment | ET23: 229 | EU23: 0 | EW23: Meals & Entertainment | EX23: 2565 | EY23: 0.003 | FA23: Meals & Entertainment | FB23: 472 | FC23: 0 | FE23: Meals & Entertainment | FF23: 1785 | FG23: 0.002 | FI23: Meals & Entertainment | FJ23: 759 | FK23: 0.001 | FM23: Meals & Entertainment | FN23: 1211 | FO23: 0.001 | FQ23: Meals & Entertainment | FR23: 3360 | FS23: 0.003 | FU23: Meals & Entertainment | FV23: 8488 | FW23: 0.008 | FY23: Meals & Entertainment | FZ23: 3592 | GA23: 0.004 | GC23: Meals & Entertainment | GD23: 5929 | GE23: 0.006 | GG23: Meals & Entertainment | GH23: 3956 | GI23: 0.004 | GK23: Meals & Entertainment | GL23: 5695 | GM23: 0.006
C24: 19 | D24: 19 | E24: ) | F24: Manufacturing - Furniture & Related Products | I24: Office Expense | J24: 3718 | K24: 0.004 | M24: Office Expense | N24: 4915 | O24: 0.005 | Q24: Office Expense | R24: 3767 | S24: 0.004 | U24: Office Expense | V24: 4939 | W24: 0.005 | Y24: Office Expense | Z24: 31849 | AA24: 0.032 | AC24: Office Expense | AD24: 5192 | AE24: 0.005 | AG24: Office Expense | AH24: 19520 | AI24: 0.02 | AK24: Office Expense | AL24: 13845 | AM24: 0.014 | AO24: Office Expense | AP24: 19241 | AQ24: 0.019 | AS24: Office Expense | AT24: 4719 | AU24: 0.005 | AW24: Office Expense | AX24: 12709 | AY24: 0.013 | BA24: Office Expense | BB24: 17188 | BC24: 0.017 | BE24: Office Expense | BF24: 34928 | BG24: 0.035 | BI24: Office Expense | BJ24: 23743 | BK24: 0.024 | BM24: Office Expense | BN24: 16013 | BO24: 0.016 | BQ24: Office Expense | BR24: 4733 | BS24: 0.005 | BU24: Office Expense | BV24: 5554 | BW24: 0.006 | BY24: Office Expense | BZ24: 5082 | CA24: 0.005 | CC24: Office Expense | CD24: 8575 | CE24: 0.009 | CG24: Office Expense | CH24: 4879 | CI24: 0.005 | CK24: Office Expense | CL24: 12390 | CM24: 0.012 | CO24: Office Expense | CP24: 4918 | CQ24: 0.005 | CS24: Office Expense | CT24: 6241 | CU24: 0.006 | CW24: Office Expense | CX24: 8050 | CY24: 0.008 | DA24: Office Expense | DB24: 8830 | DC24: 0.009 | DE24: Office Expense | DF24: 8664 | DG24: 0.009 | DI24: Office Expense | DJ24: 6875 | DK24: 0.007 | DM24: Office Expense | DN24: 9825 | DO24: 0.01 | DQ24: Office Expense | DR24: 5102 | DS24: 0.005 | DU24: Office Expense | DV24: 8216 | DW24: 0.008 | DY24: Office Expense | DZ24: 7733 | EA24: 0.008 | EC24: Office Expense | ED24: 4917 | EE24: 0.005 | EG24: Office Expense | EH24: 4797 | EI24: 0.005 | EK24: Office Expense | EL24: 1087 | EM24: 0.001 | EO24: Office Expense | EP24: 2966 | EQ24: 0.003 | ES24: Office Expense | ET24: 1258 | EU24: 0.001 | EW24: Office Expense | EX24: 5973 | EY24: 0.006 | FA24: Office Expense | FB24: 3124 | FC24: 0.003 | FE24: Office Expense | FF24: 7713 | FG24: 0.008 | FI24: Office Expense | FJ24: 2508 | FK24: 0.003 | FM24: Office Expense | FN24: 6280 | FO24: 0.006 | FQ24: Office Expense | FR24: 8858 | FS24: 0.009 | FU24: Office Expense | FV24: 10982 | FW24: 0.011 | FY24: Office Expense | FZ24: 11259 | GA24: 0.011 | GC24: Office Expense | GD24: 30016 | GE24: 0.03 | GG24: Office Expense | GH24: 8652 | GI24: 0.009 | GK24: Office Expense | GL24: 13107 | GM24: 0.013
C25: 20 | D25: 20 | E25: ) | F25: Manufacturing - Machinery | I25: Retirement Plans | J25: 536 | K25: 0.001 | M25: Retirement Plans | N25: 356 | O25: 0 | Q25: Retirement Plans | R25: 212 | S25: 0 | U25: Retirement Plans | V25: 861 | W25: 0.001 | Y25: Retirement Plans | Z25: 2521 | AA25: 0.003 | AC25: Retirement Plans | AD25: 634 | AE25: 0.001 | AG25: Retirement Plans | AH25: 6553 | AI25: 0.007 | AK25: Retirement Plans | AL25: 0 | AM25: 0 | AO25: Retirement Plans | AP25: 819 | AQ25: 0.001 | AS25: Retirement Plans | AT25: 507 | AU25: 0.001 | AW25: Retirement Plans | AX25: 3344 | AY25: 0.003 | BA25: Retirement Plans | BB25: 4945 | BC25: 0.005 | BE25: Retirement Plans | BF25: 7469 | BG25: 0.007 | BI25: Retirement Plans | BJ25: 3706 | BK25: 0.004 | BM25: Retirement Plans | BN25: 1062 | BO25: 0.001 | BQ25: Retirement Plans | BR25: 478 | BS25: 0 | BU25: Retirement Plans | BV25: 1181 | BW25: 0.001 | BY25: Retirement Plans | BZ25: 212 | CA25: 0 | CC25: Retirement Plans | CD25: 944 | CE25: 0.001 | CG25: Retirement Plans | CH25: 882 | CI25: 0.001 | CK25: Retirement Plans | CL25: 1753 | CM25: 0.002 | CO25: Retirement Plans | CP25: 211 | CQ25: 0 | CS25: Retirement Plans | CT25: 122 | CU25: 0 | CW25: Retirement Plans | CX25: 409 | CY25: 0 | DA25: Retirement Plans | DB25: 231 | DC25: 0 | DE25: Retirement Plans | DF25: 719 | DG25: 0.001 | DI25: Retirement Plans | DJ25: 329 | DK25: 0 | DM25: Retirement Plans | DN25: 295 | DO25: 0 | DQ25: Retirement Plans | DR25: 126 | DS25: 0 | DU25: Retirement Plans | DV25: 171 | DW25: 0 | DY25: Retirement Plans | DZ25: 283 | EA25: 0 | EC25: Retirement Plans | ED25: 278 | EE25: 0 | EG25: Retirement Plans | EH25: 512 | EI25: 0.001 | EK25: Retirement Plans | EL25: 136 | EM25: 0 | EO25: Retirement Plans | EP25: 258 | EQ25: 0 | ES25: Retirement Plans | ET25: 72 | EU25: 0 | EW25: Retirement Plans | EX25: 1050 | EY25: 0.001 | FA25: Retirement Plans | FB25: 86 | FC25: 0 | FE25: Retirement Plans | FF25: 712 | FG25: 0.001 | FI25: Retirement Plans | FJ25: 218 | FK25: 0 | FM25: Retirement Plans | FN25: 221 | FO25: 0 | FQ25: Retirement Plans | FR25: 615 | FS25: 0.001 | FU25: Retirement Plans | FV25: 668 | FW25: 0.001 | FY25: Retirement Plans | FZ25: 1765 | GA25: 0.002 | GC25: Retirement Plans | GD25: 7740 | GE25: 0.008 | GG25: Retirement Plans | GH25: 493 | GI25: 0 | GK25: Retirement Plans | GL25: 750 | GM25: 0.001
C26: 21 | D26: 21 | E26: ) | F26: Manufacturing - Printing & Related Activities | I26: Rent - Equipment | J26: 8692 | K26: 0.009 | M26: Rent - Equipment | N26: 45154 | O26: 0.045 | Q26: Rent - Equipment | R26: 2874 | S26: 0.003 | U26: Rent - Equipment | V26: 8230 | W26: 0.008 | Y26: Rent - Equipment | Z26: 10336 | AA26: 0.01 | AC26: Rent - Equipment | AD26: 5890 | AE26: 0.006 | AG26: Rent - Equipment | AH26: 5665 | AI26: 0.006 | AK26: Rent - Equipment | AL26: 2294 | AM26: 0.002 | AO26: Rent - Equipment | AP26: 10682 | AQ26: 0.011 | AS26: Rent - Equipment | AT26: 12354 | AU26: 0.012 | AW26: Rent - Equipment | AX26: 5944 | AY26: 0.006 | BA26: Rent - Equipment | BB26: 5692 | BC26: 0.006 | BE26: Rent - Equipment | BF26: 6493 | BG26: 0.006 | BI26: Rent - Equipment | BJ26: 3953 | BK26: 0.004 | BM26: Rent - Equipment | BN26: 6151 | BO26: 0.006 | BQ26: Rent - Equipment | BR26: 12787 | BS26: 0.013 | BU26: Rent - Equipment | BV26: 16158 | BW26: 0.016 | BY26: Rent - Equipment | BZ26: 898 | CA26: 0.001 | CC26: Rent - Equipment | CD26: 11637 | CE26: 0.012 | CG26: Rent - Equipment | CH26: 2528 | CI26: 0.003 | CK26: Rent - Equipment | CL26: 19781 | CM26: 0.02 | CO26: Rent - Equipment | CP26: 3689 | CQ26: 0.004 | CS26: Rent - Equipment | CT26: 12992 | CU26: 0.013 | CW26: Rent - Equipment | CX26: 8938 | CY26: 0.009 | DA26: Rent - Equipment | DB26: 15856 | DC26: 0.016 | DE26: Rent - Equipment | DF26: 4065 | DG26: 0.004 | DI26: Rent - Equipment | DJ26: 5846 | DK26: 0.006 | DM26: Rent - Equipment | DN26: 15424 | DO26: 0.015 | DQ26: Rent - Equipment | DR26: 5652 | DS26: 0.006 | DU26: Rent - Equipment | DV26: 4644 | DW26: 0.005 | DY26: Rent - Equipment | DZ26: 3246 | EA26: 0.003 | EC26: Rent - Equipment | ED26: 2914 | EE26: 0.003 | EG26: Rent - Equipment | EH26: 6955 | EI26: 0.007 | EK26: Rent - Equipment | EL26: 3311 | EM26: 0.003 | EO26: Rent - Equipment | EP26: 2828 | EQ26: 0.003 | ES26: Rent - Equipment | ET26: 4628 | EU26: 0.005 | EW26: Rent - Equipment | EX26: 2191 | EY26: 0.002 | FA26: Rent - Equipment | FB26: 1573 | FC26: 0.002 | FE26: Rent - Equipment | FF26: 3514 | FG26: 0.004 | FI26: Rent - Equipment | FJ26: 7975 | FK26: 0.008 | FM26: Rent - Equipment | FN26: 5195 | FO26: 0.005 | FQ26: Rent - Equipment | FR26: 10382 | FS26: 0.01 | FU26: Rent - Equipment | FV26: 5572 | FW26: 0.006 | FY26: Rent - Equipment | FZ26: 7883 | GA26: 0.008 | GC26: Rent - Equipment | GD26: 9253 | GE26: 0.009 | GG26: Rent - Equipment | GH26: 4069 | GI26: 0.004 | GK26: Rent - Equipment | GL26: 8125 | GM26: 0.008
C27: 22 | D27: 22 | E27: ) | F27: Manufacturing - Wood Products | I27: Rent - Office & Business Property | J27: 3672 | K27: 0.004 | M27: Rent - Office & Business Property | N27: 2427 | O27: 0.002 | Q27: Rent - Office & Business Property | R27: 2515 | S27: 0.003 | U27: Rent - Office & Business Property | V27: 5971 | W27: 0.006 | Y27: Rent - Office & Business Property | Z27: 70817 | AA27: 0.071 | AC27: Rent - Office & Business Property | AD27: 13562 | AE27: 0.014 | AG27: Rent - Office & Business Property | AH27: 35620 | AI27: 0.036 | AK27: Rent - Office & Business Property | AL27: 24052 | AM27: 0.024 | AO27: Rent - Office & Business Property | AP27: 67389 | AQ27: 0.067 | AS27: Rent - Office & Business Property | AT27: 23340 | AU27: 0.023 | AW27: Rent - Office & Business Property | AX27: 64309 | AY27: 0.064 | BA27: Rent - Office & Business Property | BB27: 32221 | BC27: 0.032 | BE27: Rent - Office & Business Property | BF27: 79624 | BG27: 0.08 | BI27: Rent - Office & Business Property | BJ27: 38499 | BK27: 0.038 | BM27: Rent - Office & Business Property | BN27: 65549 | BO27: 0.066 | BQ27: Rent - Office & Business Property | BR27: 51555 | BS27: 0.052 | BU27: Rent - Office & Business Property | BV27: 19885 | BW27: 0.02 | BY27: Rent - Office & Business Property | BZ27: 27287 | CA27: 0.027 | CC27: Rent - Office & Business Property | CD27: 28771 | CE27: 0.029 | CG27: Rent - Office & Business Property | CH27: 15797 | CI27: 0.016 | CK27: Rent - Office & Business Property | CL27: 32037 | CM27: 0.032 | CO27: Rent - Office & Business Property | CP27: 12887 | CQ27: 0.013 | CS27: Rent - Office & Business Property | CT27: 53335 | CU27: 0.053 | CW27: Rent - Office & Business Property | CX27: 30815 | CY27: 0.031 | DA27: Rent - Office & Business Property | DB27: 31008 | DC27: 0.031 | DE27: Rent - Office & Business Property | DF27: 19340 | DG27: 0.019 | DI27: Rent - Office & Business Property | DJ27: 19479 | DK27: 0.019 | DM27: Rent - Office & Business Property | DN27: 91643 | DO27: 0.092 | DQ27: Rent - Office & Business Property | DR27: 11334 | DS27: 0.011 | DU27: Rent - Office & Business Property | DV27: 14107 | DW27: 0.014 | DY27: Rent - Office & Business Property | DZ27: 56580 | EA27: 0.057 | EC27: Rent - Office & Business Property | ED27: 30545 | EE27: 0.031 | EG27: Rent - Office & Business Property | EH27: 48011 | EI27: 0.048 | EK27: Rent - Office & Business Property | EL27: 15690 | EM27: 0.016 | EO27: Rent - Office & Business Property | EP27: 34365 | EQ27: 0.034 | ES27: Rent - Office & Business Property | ET27: 30627 | EU27: 0.031 | EW27: Rent - Office & Business Property | EX27: 24221 | EY27: 0.024 | FA27: Rent - Office & Business Property | FB27: 9788 | FC27: 0.01 | FE27: Rent - Office & Business Property | FF27: 52269 | FG27: 0.052 | FI27: Rent - Office & Business Property | FJ27: 56358 | FK27: 0.056 | FM27: Rent - Office & Business Property | FN27: 43050 | FO27: 0.043 | FQ27: Rent - Office & Business Property | FR27: 14421 | FS27: 0.014 | FU27: Rent - Office & Business Property | FV27: 16856 | FW27: 0.017 | FY27: Rent - Office & Business Property | FZ27: 19920 | GA27: 0.02 | GC27: Rent - Office & Business Property | GD27: 34885 | GE27: 0.035 | GG27: Rent - Office & Business Property | GH27: 9758 | GI27: 0.01 | GK27: Rent - Office & Business Property | GL27: 18053 | GM27: 0.018
C28: 23 | D28: 23 | E28: ) | F28: Other Services - Auto Oil Change, Car Washes & Related Services | I28: Repairs | J28: 6118 | K28: 0.006 | M28: Repairs | N28: 29160 | O28: 0.029 | Q28: Repairs | R28: 4496 | S28: 0.004 | U28: Repairs | V28: 10324 | W28: 0.01 | Y28: Repairs | Z28: 14455 | AA28: 0.014 | AC28: Repairs | AD28: 15165 | AE28: 0.015 | AG28: Repairs | AH28: 9018 | AI28: 0.009 | AK28: Repairs | AL28: 7469 | AM28: 0.007 | AO28: Repairs | AP28: 6120 | AQ28: 0.006 | AS28: Repairs | AT28: 17079 | AU28: 0.017 | AW28: Repairs | AX28: 5907 | AY28: 0.006 | BA28: Repairs | BB28: 5198 | BC28: 0.005 | BE28: Repairs | BF28: 6759 | BG28: 0.007 | BI28: Repairs | BJ28: 7817 | BK28: 0.008 | BM28: Repairs | BN28: 1682 | BO28: 0.002 | BQ28: Repairs | BR28: 8474 | BS28: 0.008 | BU28: Repairs | BV28: 10666 | BW28: 0.011 | BY28: Repairs | BZ28: 11016 | CA28: 0.011 | CC28: Repairs | CD28: 7938 | CE28: 0.008 | CG28: Repairs | CH28: 8329 | CI28: 0.008 | CK28: Repairs | CL28: 11101 | CM28: 0.011 | CO28: Repairs | CP28: 9847 | CQ28: 0.01 | CS28: Repairs | CT28: 18749 | CU28: 0.019 | CW28: Repairs | CX28: 8671 | CY28: 0.009 | DA28: Repairs | DB28: 8898 | DC28: 0.009 | DE28: Repairs | DF28: 46453 | DG28: 0.046 | DI28: Repairs | DJ28: 10758 | DK28: 0.011 | DM28: Repairs | DN28: 10202 | DO28: 0.01 | DQ28: Repairs | DR28: 11612 | DS28: 0.012 | DU28: Repairs | DV28: 6089 | DW28: 0.006 | DY28: Repairs | DZ28: 4103 | EA28: 0.004 | EC28: Repairs | ED28: 4793 | EE28: 0.005 | EG28: Repairs | EH28: 6412 | EI28: 0.006 | EK28: Repairs | EL28: 4621 | EM28: 0.005 | EO28: Repairs | EP28: 6227 | EQ28: 0.006 | ES28: Repairs | ET28: 6159 | EU28: 0.006 | EW28: Repairs | EX28: 4755 | EY28: 0.005 | FA28: Repairs | FB28: 7003 | FC28: 0.007 | FE28: Repairs | FF28: 6358 | FG28: 0.006 | FI28: Repairs | FJ28: 12404 | FK28: 0.012 | FM28: Repairs | FN28: 4141 | FO28: 0.004 | FQ28: Repairs | FR28: 16089 | FS28: 0.016 | FU28: Repairs | FV28: 3391 | FW28: 0.003 | FY28: Repairs | FZ28: 10924 | GA28: 0.011 | GC28: Repairs | GD28: 6774 | GE28: 0.007 | GG28: Repairs | GH28: 2843 | GI28: 0.003 | GK28: Repairs | GL28: 2999 | GM28: 0.003
C29: 24 | D29: 24 | E29: ) | F29: Other Services - Automotive Body Shops | I29: Supplies | J29: 21699 | K29: 0.022 | M29: Supplies | N29: 56449 | O29: 0.056 | Q29: Supplies | R29: 19501 | S29: 0.02 | U29: Supplies | V29: 35296 | W29: 0.035 | Y29: Supplies | Z29: 33057 | AA29: 0.033 | AC29: Supplies | AD29: 65517 | AE29: 0.066 | AG29: Supplies | AH29: 48837 | AI29: 0.049 | AK29: Supplies | AL29: 48420 | AM29: 0.048 | AO29: Supplies | AP29: 19992 | AQ29: 0.02 | AS29: Supplies | AT29: 25850 | AU29: 0.026 | AW29: Supplies | AX29: 14742 | AY29: 0.015 | BA29: Supplies | BB29: 21602 | BC29: 0.022 | BE29: Supplies | BF29: 40352 | BG29: 0.04 | BI29: Supplies | BJ29: 15573 | BK29: 0.016 | BM29: Supplies | BN29: 23586 | BO29: 0.024 | BQ29: Supplies | BR29: 9197 | BS29: 0.009 | BU29: Supplies | BV29: 20761 | BW29: 0.021 | BY29: Supplies | BZ29: 10200 | CA29: 0.01 | CC29: Supplies | CD29: 45191 | CE29: 0.045 | CG29: Supplies | CH29: 10240 | CI29: 0.01 | CK29: Supplies | CL29: 29347 | CM29: 0.029 | CO29: Supplies | CP29: 19705 | CQ29: 0.02 | CS29: Supplies | CT29: 35530 | CU29: 0.036 | CW29: Supplies | CX29: 45822 | CY29: 0.046 | DA29: Supplies | DB29: 26041 | DC29: 0.026 | DE29: Supplies | DF29: 39958 | DG29: 0.04 | DI29: Supplies | DJ29: 30856 | DK29: 0.031 | DM29: Supplies | DN29: 43808 | DO29: 0.044 | DQ29: Supplies | DR29: 8737 | DS29: 0.009 | DU29: Supplies | DV29: 16367 | DW29: 0.016 | DY29: Supplies | DZ29: 9119 | EA29: 0.009 | EC29: Supplies | ED29: 4161 | EE29: 0.004 | EG29: Supplies | EH29: 5371 | EI29: 0.005 | EK29: Supplies | EL29: 3142 | EM29: 0.003 | EO29: Supplies | EP29: 7006 | EQ29: 0.007 | ES29: Supplies | ET29: 5850 | EU29: 0.006 | EW29: Supplies | EX29: 13312 | EY29: 0.013 | FA29: Supplies | FB29: 5241 | FC29: 0.005 | FE29: Supplies | FF29: 11242 | FG29: 0.011 | FI29: Supplies | FJ29: 15941 | FK29: 0.016 | FM29: Supplies | FN29: 7670 | FO29: 0.008 | FQ29: Supplies | FR29: 37419 | FS29: 0.037 | FU29: Supplies | FV29: 11051 | FW29: 0.011 | FY29: Supplies | FZ29: 29505 | GA29: 0.03 | GC29: Supplies | GD29: 17510 | GE29: 0.018 | GG29: Supplies | GH29: 16558 | GI29: 0.017 | GK29: Supplies | GL29: 22809 | GM29: 0.023
C30: 25 | D30: 25 | E30: ) | F30: Other Services - Automotive Mechanical & Electrical Repair | I30: Taxes - Business & Payroll | J30: 9435 | K30: 0.009 | M30: Taxes - Business & Payroll | N30: 12213 | O30: 0.012 | Q30: Taxes - Business & Payroll | R30: 7735 | S30: 0.008 | U30: Taxes - Business & Payroll | V30: 11848 | W30: 0.012 | Y30: Taxes - Business & Payroll | Z30: 21445 | AA30: 0.021 | AC30: Taxes - Business & Payroll | AD30: 7550 | AE30: 0.008 | AG30: Taxes - Business & Payroll | AH30: 25326 | AI30: 0.025 | AK30: Taxes - Business & Payroll | AL30: 9021 | AM30: 0.009 | AO30: Taxes - Business & Payroll | AP30: 11241 | AQ30: 0.011 | AS30: Taxes - Business & Payroll | AT30: 26271 | AU30: 0.026 | AW30: Taxes - Business & Payroll | AX30: 24035 | AY30: 0.024 | BA30: Taxes - Business & Payroll | BB30: 16477 | BC30: 0.016 | BE30: Taxes - Business & Payroll | BF30: 15018 | BG30: 0.015 | BI30: Taxes - Business & Payroll | BJ30: 16038 | BK30: 0.016 | BM30: Taxes - Business & Payroll | BN30: 3575 | BO30: 0.004 | BQ30: Taxes - Business & Payroll | BR30: 27368 | BS30: 0.027 | BU30: Taxes - Business & Payroll | BV30: 19826 | BW30: 0.02 | BY30: Taxes - Business & Payroll | BZ30: 12396 | CA30: 0.012 | CC30: Taxes - Business & Payroll | CD30: 11051 | CE30: 0.011 | CG30: Taxes - Business & Payroll | CH30: 26152 | CI30: 0.026 | CK30: Taxes - Business & Payroll | CL30: 19864 | CM30: 0.02 | CO30: Taxes - Business & Payroll | CP30: 17346 | CQ30: 0.017 | CS30: Taxes - Business & Payroll | CT30: 24344 | CU30: 0.024 | CW30: Taxes - Business & Payroll | CX30: 25483 | CY30: 0.025 | DA30: Taxes - Business & Payroll | DB30: 23368 | DC30: 0.023 | DE30: Taxes - Business & Payroll | DF30: 69891 | DG30: 0.07 | DI30: Taxes - Business & Payroll | DJ30: 13624 | DK30: 0.014 | DM30: Taxes - Business & Payroll | DN30: 15027 | DO30: 0.015 | DQ30: Taxes - Business & Payroll | DR30: 21741 | DS30: 0.022 | DU30: Taxes - Business & Payroll | DV30: 8340 | DW30: 0.008 | DY30: Taxes - Business & Payroll | DZ30: 20966 | EA30: 0.021 | EC30: Taxes - Business & Payroll | ED30: 17782 | EE30: 0.018 | EG30: Taxes - Business & Payroll | EH30: 15060 | EI30: 0.015 | EK30: Taxes - Business & Payroll | EL30: 10104 | EM30: 0.01 | EO30: Taxes - Business & Payroll | EP30: 15605 | EQ30: 0.016 | ES30: Taxes - Business & Payroll | ET30: 15019 | EU30: 0.015 | EW30: Taxes - Business & Payroll | EX30: 11888 | EY30: 0.012 | FA30: Taxes - Business & Payroll | FB30: 8985 | FC30: 0.009 | FE30: Taxes - Business & Payroll | FF30: 21315 | FG30: 0.021 | FI30: Taxes - Business & Payroll | FJ30: 36822 | FK30: 0.037 | FM30: Taxes - Business & Payroll | FN30: 18555 | FO30: 0.019 | FQ30: Taxes - Business & Payroll | FR30: 13212 | FS30: 0.013 | FU30: Taxes - Business & Payroll | FV30: 5784 | FW30: 0.006 | FY30: Taxes - Business & Payroll | FZ30: 22960 | GA30: 0.023 | GC30: Taxes - Business & Payroll | GD30: 15898 | GE30: 0.016 | GG30: Taxes - Business & Payroll | GH30: 8829 | GI30: 0.009 | GK30: Taxes - Business & Payroll | GL30: 11864 | GM30: 0.012
C31: 26 | D31: 26 | E31: ) | F31: Other Services - Hotels & Inns | I31: Travel | J31: 6936 | K31: 0.007 | M31: Travel | N31: 3288 | O31: 0.003 | Q31: Travel | R31: 1514 | S31: 0.002 | U31: Travel | V31: 3163 | W31: 0.003 | Y31: Travel | Z31: 3885 | AA31: 0.004 | AC31: Travel | AD31: 2524 | AE31: 0.003 | AG31: Travel | AH31: 3874 | AI31: 0.004 | AK31: Travel | AL31: 7792 | AM31: 0.008 | AO31: Travel | AP31: 9855 | AQ31: 0.01 | AS31: Travel | AT31: 677 | AU31: 0.001 | AW31: Travel | AX31: 2665 | AY31: 0.003 | BA31: Travel | BB31: 5600 | BC31: 0.006 | BE31: Travel | BF31: 2850 | BG31: 0.003 | BI31: Travel | BJ31: 9239 | BK31: 0.009 | BM31: Travel | BN31: 18925 | BO31: 0.019 | BQ31: Travel | BR31: 4285 | BS31: 0.004 | BU31: Travel | BV31: 4155 | BW31: 0.004 | BY31: Travel | BZ31: 2835 | CA31: 0.003 | CC31: Travel | CD31: 1320 | CE31: 0.001 | CG31: Travel | CH31: 2984 | CI31: 0.003 | CK31: Travel | CL31: 2010 | CM31: 0.002 | CO31: Travel | CP31: 782 | CQ31: 0.001 | CS31: Travel | CT31: 739 | CU31: 0.001 | CW31: Travel | CX31: 4165 | CY31: 0.004 | DA31: Travel | DB31: 1416 | DC31: 0.001 | DE31: Travel | DF31: 3075 | DG31: 0.003 | DI31: Travel | DJ31: 6461 | DK31: 0.006 | DM31: Travel | DN31: 5868 | DO31: 0.006 | DQ31: Travel | DR31: 3390 | DS31: 0.003 | DU31: Travel | DV31: 10457 | DW31: 0.01 | DY31: Travel | DZ31: 4804 | EA31: 0.005 | EC31: Travel | ED31: 1843 | EE31: 0.002 | EG31: Travel | EH31: 5313 | EI31: 0.005 | EK31: Travel | EL31: 153 | EM31: 0 | EO31: Travel | EP31: 3917 | EQ31: 0.004 | ES31: Travel | ET31: 301 | EU31: 0 | EW31: Travel | EX31: 3509 | EY31: 0.004 | FA31: Travel | FB31: 1500 | FC31: 0.001 | FE31: Travel | FF31: 7235 | FG31: 0.007 | FI31: Travel | FJ31: 1826 | FK31: 0.002 | FM31: Travel | FN31: 3929 | FO31: 0.004 | FQ31: Travel | FR31: 8606 | FS31: 0.009 | FU31: Travel | FV31: 14279 | FW31: 0.014 | FY31: Travel | FZ31: 7368 | GA31: 0.007 | GC31: Travel | GD31: 8407 | GE31: 0.008 | GG31: Travel | GH31: 12211 | GI31: 0.012 | GK31: Travel | GL31: 3258 | GM31: 0.003
C32: 27 | D32: 27 | E32: ) | F32: Other Services - Miscellaneous Repair Services | I32: Utilities | J32: 10426 | K32: 0.01 | M32: Utilities | N32: 13081 | O32: 0.013 | Q32: Utilities | R32: 7233 | S32: 0.007 | U32: Utilities | V32: 11315 | W32: 0.011 | Y32: Utilities | Z32: 30798 | AA32: 0.031 | AC32: Utilities | AD32: 20812 | AE32: 0.021 | AG32: Utilities | AH32: 17349 | AI32: 0.017 | AK32: Utilities | AL32: 25903 | AM32: 0.026 | AO32: Utilities | AP32: 21774 | AQ32: 0.022 | AS32: Utilities | AT32: 29936 | AU32: 0.03 | AW32: Utilities | AX32: 18928 | AY32: 0.019 | BA32: Utilities | BB32: 14931 | BC32: 0.015 | BE32: Utilities | BF32: 35360 | BG32: 0.035 | BI32: Utilities | BJ32: 16798 | BK32: 0.017 | BM32: Utilities | BN32: 18392 | BO32: 0.018 | BQ32: Utilities | BR32: 29121 | BS32: 0.029 | BU32: Utilities | BV32: 16231 | BW32: 0.016 | BY32: Utilities | BZ32: 19403 | CA32: 0.019 | CC32: Utilities | CD32: 13557 | CE32: 0.014 | CG32: Utilities | CH32: 19486 | CI32: 0.019 | CK32: Utilities | CL32: 20847 | CM32: 0.021 | CO32: Utilities | CP32: 13663 | CQ32: 0.014 | CS32: Utilities | CT32: 30480 | CU32: 0.03 | CW32: Utilities | CX32: 28479 | CY32: 0.028 | DA32: Utilities | DB32: 26930 | DC32: 0.027 | DE32: Utilities | DF32: 85430 | DG32: 0.085 | DI32: Utilities | DJ32: 24132 | DK32: 0.024 | DM32: Utilities | DN32: 40078 | DO32: 0.04 | DQ32: Utilities | DR32: 15101 | DS32: 0.015 | DU32: Utilities | DV32: 16620 | DW32: 0.017 | DY32: Utilities | DZ32: 16908 | EA32: 0.017 | EC32: Utilities | ED32: 15849 | EE32: 0.016 | EG32: Utilities | EH32: 19417 | EI32: 0.019 | EK32: Utilities | EL32: 11731 | EM32: 0.012 | EO32: Utilities | EP32: 25324 | EQ32: 0.025 | ES32: Utilities | ET32: 20375 | EU32: 0.02 | EW32: Utilities | EX32: 15536 | EY32: 0.016 | FA32: Utilities | FB32: 9194 | FC32: 0.009 | FE32: Utilities | FF32: 20604 | FG32: 0.021 | FI32: Utilities | FJ32: 40641 | FK32: 0.041 | FM32: Utilities | FN32: 15647 | FO32: 0.016 | FQ32: Utilities | FR32: 16787 | FS32: 0.017 | FU32: Utilities | FV32: 19109 | FW32: 0.019 | FY32: Utilities | FZ32: 16415 | GA32: 0.016 | GC32: Utilities | GD32: 26409 | GE32: 0.026 | GG32: Utilities | GH32: 12292 | GI32: 0.012 | GK32: Utilities | GL32: 14877 | GM32: 0.015
C33: 28 | D33: 28 | E33: ) | F33: Other Services - Personal & Laundry Services | I33: Other Expenses | J33: 53789 | K33: 0.054 | M33: Other Expenses | N33: 75723 | O33: 0.076 | Q33: Other Expenses | R33: 71531 | S33: 0.072 | U33: Other Expenses | V33: 82349 | W33: 0.082 | Y33: Other Expenses | Z33: 89320 | AA33: 0.089 | AC33: Other Expenses | AD33: 151699 | AE33: 0.152 | AG33: Other Expenses | AH33: 93148 | AI33: 0.093 | AK33: Other Expenses | AL33: 112377 | AM33: 0.112 | AO33: Other Expenses | AP33: 86584 | AQ33: 0.087 | AS33: Other Expenses | AT33: 155256 | AU33: 0.155 | AW33: Other Expenses | AX33: 90120 | AY33: 0.09 | BA33: Other Expenses | BB33: 91660 | BC33: 0.092 | BE33: Other Expenses | BF33: 69421 | BG33: 0.069 | BI33: Other Expenses | BJ33: 68312 | BK33: 0.068 | BM33: Other Expenses | BN33: 96093 | BO33: 0.096 | BQ33: Other Expenses | BR33: 99078 | BS33: 0.099 | BU33: Other Expenses | BV33: 87711 | BW33: 0.088 | BY33: Other Expenses | BZ33: 27618 | CA33: 0.028 | CC33: Other Expenses | CD33: 48955 | CE33: 0.049 | CG33: Other Expenses | CH33: 24959 | CI33: 0.025 | CK33: Other Expenses | CL33: 60591 | CM33: 0.061 | CO33: Other Expenses | CP33: 75114 | CQ33: 0.075 | CS33: Other Expenses | CT33: 51851 | CU33: 0.052 | CW33: Other Expenses | CX33: 63812 | CY33: 0.064 | DA33: Other Expenses | DB33: 61693 | DC33: 0.062 | DE33: Other Expenses | DF33: 96122 | DG33: 0.096 | DI33: Other Expenses | DJ33: 67977 | DK33: 0.068 | DM33: Other Expenses | DN33: 76154 | DO33: 0.076 | DQ33: Other Expenses | DR33: 43704 | DS33: 0.044 | DU33: Other Expenses | DV33: 79647 | DW33: 0.08 | DY33: Other Expenses | DZ33: 29323 | EA33: 0.029 | EC33: Other Expenses | ED33: 28031 | EE33: 0.028 | EG33: Other Expenses | EH33: 63506 | EI33: 0.064 | EK33: Other Expenses | EL33: 14345 | EM33: 0.014 | EO33: Other Expenses | EP33: 37823 | EQ33: 0.038 | ES33: Other Expenses | ET33: 27192 | EU33: 0.027 | EW33: Other Expenses | EX33: 32689 | EY33: 0.033 | FA33: Other Expenses | FB33: 24002 | FC33: 0.024 | FE33: Other Expenses | FF33: 53919 | FG33: 0.054 | FI33: Other Expenses | FJ33: 52784 | FK33: 0.053 | FM33: Other Expenses | FN33: 50366 | FO33: 0.05 | FQ33: Other Expenses | FR33: 84254 | FS33: 0.084 | FU33: Other Expenses | FV33: 133747 | FW33: 0.134 | FY33: Other Expenses | FZ33: 106833 | GA33: 0.107 | GC33: Other Expenses | GD33: 97797 | GE33: 0.098 | GG33: Other Expenses | GH33: 74075 | GI33: 0.074 | GK33: Other Expenses | GL33: 44427 | GM33: 0.044
C34: 29 | D34: 29 | E34: ) | F34: Retailing - Building Materials & Garden Supplies | I34: Total Expenses as % of Revenue | J34: 842124 | K34: 0.842 | M34: Total Expenses as % of Revenue | N34: 858109 | O34: 0.858 | Q34: Total Expenses as % of Revenue | R34: 838224 | S34: 0.838 | U34: Total Expenses as % of Revenue | V34: 757353 | W34: 0.757 | Y34: Total Expenses as % of Revenue | Z34: 584079 | AA34: 0.584 | AC34: Total Expenses as % of Revenue | AD34: 539842 | AE34: 0.54 | AG34: Total Expenses as % of Revenue | AH34: 622080 | AI34: 0.622 | AK34: Total Expenses as % of Revenue | AL34: 498998 | AM34: 0.499 | AO34: Total Expenses as % of Revenue | AP34: 457618 | AQ34: 0.458 | AS34: Total Expenses as % of Revenue | AT34: 671897 | AU34: 0.672 | AW34: Total Expenses as % of Revenue | AX34: 731652 | AY34: 0.732 | BA34: Total Expenses as % of Revenue | BB34: 437726 | BC34: 0.438 | BE34: Total Expenses as % of Revenue | BF34: 588608 | BG34: 0.589 | BI34: Total Expenses as % of Revenue | BJ34: 405253 | BK34: 0.405 | BM34: Total Expenses as % of Revenue | BN34: 428987 | BO34: 0.429 | BQ34: Total Expenses as % of Revenue | BR34: 875119 | BS34: 0.875 | BU34: Total Expenses as % of Revenue | BV34: 813120 | BW34: 0.813 | BY34: Total Expenses as % of Revenue | BZ34: 847921 | CA34: 0.848 | CC34: Total Expenses as % of Revenue | CD34: 781491 | CE34: 0.781 | CG34: Total Expenses as % of Revenue | CH34: 761718 | CI34: 0.762 | CK34: Total Expenses as % of Revenue | CL34: 817641 | CM34: 0.818 | CO34: Total Expenses as % of Revenue | CP34: 902072 | CQ34: 0.902 | CS34: Total Expenses as % of Revenue | CT34: 836264 | CU34: 0.836 | CW34: Total Expenses as % of Revenue | CX34: 839785 | CY34: 0.84 | DA34: Total Expenses as % of Revenue | DB34: 838439 | DC34: 0.838 | DE34: Total Expenses as % of Revenue | DF34: 843426 | DG34: 0.843 | DI34: Total Expenses as % of Revenue | DJ34: 732158 | DK34: 0.732 | DM34: Total Expenses as % of Revenue | DN34: 636208 | DO34: 0.636 | DQ34: Total Expenses as % of Revenue | DR34: 896050 | DS34: 0.896 | DU34: Total Expenses as % of Revenue | DV34: 761829 | DW34: 0.762 | DY34: Total Expenses as % of Revenue | DZ34: 863056 | EA34: 0.863 | EC34: Total Expenses as % of Revenue | ED34: 876746 | EE34: 0.877 | EG34: Total Expenses as % of Revenue | EH34: 868730 | EI34: 0.869 | EK34: Total Expenses as % of Revenue | EL34: 967197 | EM34: 0.967 | EO34: Total Expenses as % of Revenue | EP34: 898081 | EQ34: 0.898 | ES34: Total Expenses as % of Revenue | ET34: 939532 | EU34: 0.94 | EW34: Total Expenses as % of Revenue | EX34: 842782 | EY34: 0.843 | FA34: Total Expenses as % of Revenue | FB34: 936048 | FC34: 0.936 | FE34: Total Expenses as % of Revenue | FF34: 865438 | FG34: 0.865 | FI34: Total Expenses as % of Revenue | FJ34: 891204 | FK34: 0.891 | FM34: Total Expenses as % of Revenue | FN34: 875434 | FO34: 0.875 | FQ34: Total Expenses as % of Revenue | FR34: 645234 | FS34: 0.645 | FU34: Total Expenses as % of Revenue | FV34: 693731 | FW34: 0.694 | FY34: Total Expenses as % of Revenue | FZ34: 670811 | GA34: 0.671 | GC34: Total Expenses as % of Revenue | GD34: 545758 | GE34: 0.546 | GG34: Total Expenses as % of Revenue | GH34: 507771 | GI34: 0.508 | GK34: Total Expenses as % of Revenue | GL34: 392262 | GM34: 0.392
C35: 30 | D35: 30 | E35: ) | F35: Retailing - Catalog & Multi-level Marketing
C36: 31 | D36: 31 | E36: ) | F36: Retailing - Clothing & Accessories
C37: 32 | D37: 32 | E37: ) | F37: Retailing - Electronics & Appliances | I37: Average profitability & expense percentages for U.S. small businesses* | M37: Average profitability & expense percentages for U.S. small businesses* | Q37: Average profitability & expense percentages for U.S. small businesses* | U37: Average profitability & expense percentages for U.S. small businesses* | Y37: Average profitability & expense percentages for U.S. small businesses* | AC37: Average profitability & expense percentages for U.S. small businesses* | AG37: Average profitability & expense percentages for U.S. small businesses* | AK37: Average profitability & expense percentages for U.S. small businesses* | AO37: Average profitability & expense percentages for U.S. small businesses* | AS37: Average profitability & expense percentages for U.S. small businesses* | AW37: Average profitability & expense percentages for U.S. small businesses* | BA37: Average profitability & expense percentages for U.S. small businesses* | BE37: Average profitability & expense percentages for U.S. small businesses* | BI37: Average profitability & expense percentages for U.S. small businesses* | BM37: Average profitability & expense percentages for U.S. small businesses* | BQ37: Average profitability & expense percentages for U.S. small businesses* | BU37: Average profitability & expense percentages for U.S. small businesses* | BY37: Average profitability & expense percentages for U.S. small businesses* | CC37: Average profitability & expense percentages for U.S. small businesses* | CG37: Average profitability & expense percentages for U.S. small businesses*
C38: 33 | D38: 33 | E38: ) | F38: Retailing - Furniture & Home Furnishings | I38: Services - Educational (Excluding Schools) | J38: $ | K38: % | M38: Services - Engineering Services | N38: $ | O38: % | Q38: Services - Information & Data Processing Services | R38: $ | S38: % | U38: Services - Insurance Agencies & Brokerages | V38: $ | W38: % | Y38: Services - Legal Services | Z38: $ | AA38: % | AC38: Services - Management & Technical Consulting | AD38: $ | AE38: % | AG38: Services - Market Research & Public Opinion Polling | AH38: $ | AI38: % | AK38: Services - Other Business Services | AL38: $ | AM38: % | AO38: Services - Publishing Services | AP38: $ | AQ38: % | AS38: Services - Real Estate Agents, Brokers & Managers | AT38: $ | AU38: % | AW38: Services - Scientific Research & Development | AX38: $ | AY38: % | BA38: Services - Specialized Design | BB38: $ | BC38: % | BE38: Services - Surveying & Mapping Services | BF38: $ | BG38: % | BI38: Services - Tax & Payroll Services | BJ38: $ | BK38: % | BM38: Transportation - Couriers & Messengers | BN38: $ | BO38: % | BQ38: Transportation - Local Trucking & Freight | BR38: $ | BS38: % | BU38: Transportation - Long-distance & Specialized Freight | BV38: $ | BW38: % | BY38: Transportation - Taxi & Limousine Services | BZ38: $ | CA38: % | CC38: Wholesaling - Durable Goods | CD38: $ | CE38: % | CG38: Wholesaling - Nondurable Goods | CH38: $ | CI38: %
C39: 34 | D39: 48 | E39: ) | F39: Retailing - Gasoline Stations
C40: 35 | D40: 49 | E40: ) | F40: Retailing - General Merchandise | I40: Total Revenue (Sales) | J40: 1000000 | K40: 1 | M40: Total Revenue (Sales) | N40: 1000000 | O40: 1 | Q40: Total Revenue (Sales) | R40: 1000000 | S40: 1 | U40: Total Revenue (Sales) | V40: 1000000 | W40: 1 | Y40: Total Revenue (Sales) | Z40: 1000000 | AA40: 1 | AC40: Total Revenue (Sales) | AD40: 1000000 | AE40: 1 | AG40: Total Revenue (Sales) | AH40: 1000000 | AI40: 1 | AK40: Total Revenue (Sales) | AL40: 1000000 | AM40: 1 | AO40: Total Revenue (Sales) | AP40: 1000000 | AQ40: 1 | AS40: Total Revenue (Sales) | AT40: 1000000 | AU40: 1 | AW40: Total Revenue (Sales) | AX40: 1000000 | AY40: 1 | BA40: Total Revenue (Sales) | BB40: 1000000 | BC40: 1 | BE40: Total Revenue (Sales) | BF40: 1000000 | BG40: 1 | BI40: Total Revenue (Sales) | BJ40: 1000000 | BK40: 1 | BM40: Total Revenue (Sales) | BN40: 1000000 | BO40: 1 | BQ40: Total Revenue (Sales) | BR40: 1000000 | BS40: 1 | BU40: Total Revenue (Sales) | BV40: 1000000 | BW40: 1 | BY40: Total Revenue (Sales) | BZ40: 1000000 | CA40: 1 | CC40: Total Revenue (Sales) | CD40: 1000000 | CE40: 1 | CG40: Total Revenue (Sales) | CH40: 1000000 | CI40: 1
C41: 36 | D41: 50 | E41: ) | F41: Retailing - Grocery & Beverage Stores | I41: Total Expenses as % of Revenue | J41: 502716 | K41: 0.503 | M41: Total Expenses as % of Revenue | N41: 493593 | O41: 0.494 | Q41: Total Expenses as % of Revenue | R41: 534474 | S41: 0.534 | U41: Total Expenses as % of Revenue | V41: 525676 | W41: 0.526 | Y41: Total Expenses as % of Revenue | Z41: 515917 | AA41: 0.516 | AC41: Total Expenses as % of Revenue | AD41: 370603 | AE41: 0.371 | AG41: Total Expenses as % of Revenue | AH41: 673862 | AI41: 0.674 | AK41: Total Expenses as % of Revenue | AL41: 610086 | AM41: 0.61 | AO41: Total Expenses as % of Revenue | AP41: 691156 | AQ41: 0.691 | AS41: Total Expenses as % of Revenue | AT41: 476220 | AU41: 0.476 | AW41: Total Expenses as % of Revenue | AX41: 404058 | AY41: 0.404 | BA41: Total Expenses as % of Revenue | BB41: 713232 | BC41: 0.713 | BE41: Total Expenses as % of Revenue | BF41: 691956 | BG41: 0.692 | BI41: Total Expenses as % of Revenue | BJ41: 526421 | BK41: 0.526 | BM41: Total Expenses as % of Revenue | BN41: 672943 | BO41: 0.673 | BQ41: Total Expenses as % of Revenue | BR41: 792223 | BS41: 0.792 | BU41: Total Expenses as % of Revenue | BV41: 816729 | BW41: 0.817 | BY41: Total Expenses as % of Revenue | BZ41: 690404 | CA41: 0.69 | CC41: Total Expenses as % of Revenue | CD41: 847732 | CE41: 0.848 | CG41: Total Expenses as % of Revenue | CH41: 849679 | CI41: 0.85
C42: 37 | D42: 51 | E42: ) | F42: Retailing - Health & Personal Care Stores | I42: Net Income to Owner as % of Revenue | J42: 497284 | K42: 0.497 | M42: Net Income to Owner as % of Revenue | N42: 506407 | O42: 0.506 | Q42: Net Income to Owner as % of Revenue | R42: 465526 | S42: 0.466 | U42: Net Income to Owner as % of Revenue | V42: 474324 | W42: 0.474 | Y42: Net Income to Owner as % of Revenue | Z42: 484083 | AA42: 0.484 | AC42: Net Income to Owner as % of Revenue | AD42: 629397 | AE42: 0.629 | AG42: Net Income to Owner as % of Revenue | AH42: 326138 | AI42: 0.326 | AK42: Net Income to Owner as % of Revenue | AL42: 389914 | AM42: 0.39 | AO42: Net Income to Owner as % of Revenue | AP42: 308844 | AQ42: 0.309 | AS42: Net Income to Owner as % of Revenue | AT42: 523780 | AU42: 0.524 | AW42: Net Income to Owner as % of Revenue | AX42: 595942 | AY42: 0.596 | BA42: Net Income to Owner as % of Revenue | BB42: 286768 | BC42: 0.287 | BE42: Net Income to Owner as % of Revenue | BF42: 308044 | BG42: 0.308 | BI42: Net Income to Owner as % of Revenue | BJ42: 473579 | BK42: 0.474 | BM42: Net Income to Owner as % of Revenue | BN42: 327057 | BO42: 0.327 | BQ42: Net Income to Owner as % of Revenue | BR42: 207777 | BS42: 0.208 | BU42: Net Income to Owner as % of Revenue | BV42: 183271 | BW42: 0.183 | BY42: Net Income to Owner as % of Revenue | BZ42: 309596 | CA42: 0.31 | CC42: Net Income to Owner as % of Revenue | CD42: 152268 | CE42: 0.152 | CG42: Net Income to Owner as % of Revenue | CH42: 150321 | CI42: 0.15
C43: 38 | D43: 52 | E43: ) | F43: Retailing - Motor Vehicles & Parts
C44: 39 | D44: 53 | E44: ) | F44: Retailing - Other Retail Products | I44: Detail of Expenses (as % of Revenue) | M44: Detail of Expenses (as % of Revenue) | Q44: Detail of Expenses (as % of Revenue) | U44: Detail of Expenses (as % of Revenue) | Y44: Detail of Expenses (as % of Revenue) | AC44: Detail of Expenses (as % of Revenue) | AG44: Detail of Expenses (as % of Revenue) | AK44: Detail of Expenses (as % of Revenue) | AO44: Detail of Expenses (as % of Revenue) | AS44: Detail of Expenses (as % of Revenue) | AW44: Detail of Expenses (as % of Revenue) | BA44: Detail of Expenses (as % of Revenue) | BE44: Detail of Expenses (as % of Revenue) | BI44: Detail of Expenses (as % of Revenue) | BM44: Detail of Expenses (as % of Revenue) | BQ44: Detail of Expenses (as % of Revenue) | BU44: Detail of Expenses (as % of Revenue) | BY44: Detail of Expenses (as % of Revenue) | CC44: Detail of Expenses (as % of Revenue) | CG44: Detail of Expenses (as % of Revenue)
C45: 40 | D45: 54 | E45: ) | F45: Retailing - Restaurants & Drinking Places | I45: Cost of Goods Sold | J45: 49161 | K45: 0.049 | M45: Cost of Goods Sold | N45: 148958 | O45: 0.149 | Q45: Cost of Goods Sold | R45: 219366 | S45: 0.219 | U45: Cost of Goods Sold | V45: 26558 | W45: 0.027 | Y45: Cost of Goods Sold | Z45: 51738 | AA45: 0.052 | AC45: Cost of Goods Sold | AD45: 73977 | AE45: 0.074 | AG45: Cost of Goods Sold | AH45: 176802 | AI45: 0.177 | AK45: Cost of Goods Sold | AL45: 182300 | AM45: 0.182 | AO45: Cost of Goods Sold | AP45: 200802 | AQ45: 0.201 | AS45: Cost of Goods Sold | AT45: 61882 | AU45: 0.062 | AW45: Cost of Goods Sold | AX45: 40298 | AY45: 0.04 | BA45: Cost of Goods Sold | BB45: 389851 | BC45: 0.39 | BE45: Cost of Goods Sold | BF45: 81375 | BG45: 0.081 | BI45: Cost of Goods Sold | BJ45: 48381 | BK45: 0.048 | BM45: Cost of Goods Sold | BN45: 115862 | BO45: 0.116 | BQ45: Cost of Goods Sold | BR45: 118348 | BS45: 0.118 | BU45: Cost of Goods Sold | BV45: 80126 | BW45: 0.08 | BY45: Cost of Goods Sold | BZ45: 2993 | CA45: 0.003 | CC45: Cost of Goods Sold | CD45: 666501 | CE45: 0.667 | CG45: Cost of Goods Sold | CH45: 670586 | CI45: 0.671
C46: 41 | D46: 55 | E46: ) | F46: Retailing - Sporting Goods, Hobbies, Books & Music | I46: Salaries & Wages | J46: 51494 | K46: 0.051 | M46: Salaries & Wages | N46: 59289 | O46: 0.059 | Q46: Salaries & Wages | R46: 23278 | S46: 0.023 | U46: Salaries & Wages | V46: 95228 | W46: 0.095 | Y46: Salaries & Wages | Z46: 101945 | AA46: 0.102 | AC46: Salaries & Wages | AD46: 15775 | AE46: 0.016 | AG46: Salaries & Wages | AH46: 49666 | AI46: 0.05 | AK46: Salaries & Wages | AL46: 73459 | AM46: 0.073 | AO46: Salaries & Wages | AP46: 44765 | AQ46: 0.045 | AS46: Salaries & Wages | AT46: 13540 | AU46: 0.014 | AW46: Salaries & Wages | AX46: 8855 | AY46: 0.009 | BA46: Salaries & Wages | BB46: 32354 | BC46: 0.032 | BE46: Salaries & Wages | BF46: 140879 | BG46: 0.141 | BI46: Salaries & Wages | BJ46: 87094 | BK46: 0.087 | BM46: Salaries & Wages | BN46: 29358 | BO46: 0.029 | BQ46: Salaries & Wages | BR46: 57970 | BS46: 0.058 | BU46: Salaries & Wages | BV46: 45949 | BW46: 0.046 | BY46: Salaries & Wages | BZ46: 3492 | CA46: 0.003 | CC46: Salaries & Wages | CD46: 22699 | CE46: 0.023 | CG46: Salaries & Wages | CH46: 21057 | CI46: 0.021
C47: 42 | D47: 56 | E47: ) | F47: Services - Administrative & Personnel Support | I47: Advertising | J47: 11547 | K47: 0.012 | M47: Advertising | N47: 3682 | O47: 0.004 | Q47: Advertising | R47: 10786 | S47: 0.011 | U47: Advertising | V47: 19855 | W47: 0.02 | Y47: Advertising | Z47: 14668 | AA47: 0.015 | AC47: Advertising | AD47: 4542 | AE47: 0.005 | AG47: Advertising | AH47: 2626 | AI47: 0.003 | AK47: Advertising | AL47: 8755 | AM47: 0.009 | AO47: Advertising | AP47: 15364 | AQ47: 0.015 | AS47: Advertising | AT47: 34197 | AU47: 0.034 | AW47: Advertising | AX47: 1363 | AY47: 0.001 | BA47: Advertising | BB47: 5992 | BC47: 0.006 | BE47: Advertising | BF47: 5980 | BG47: 0.006 | BI47: Advertising | BJ47: 10093 | BK47: 0.01 | BM47: Advertising | BN47: 4778 | BO47: 0.005 | BQ47: Advertising | BR47: 2519 | BS47: 0.003 | BU47: Advertising | BV47: 1242 | BW47: 0.001 | BY47: Advertising | BZ47: 5256 | CA47: 0.005 | CC47: Advertising | CD47: 6145 | CE47: 0.006 | CG47: Advertising | CH47: 3482 | CI47: 0.003
C48: 43 | D48: 57 | E48: ) | F48: Services - Advertising & Related Services | I48: Auto & Truck Expenses | J48: 52113 | K48: 0.052 | M48: Auto & Truck Expenses | N48: 35077 | O48: 0.035 | Q48: Auto & Truck Expenses | R48: 34456 | S48: 0.034 | U48: Auto & Truck Expenses | V48: 49410 | W48: 0.049 | Y48: Auto & Truck Expenses | Z48: 22240 | AA48: 0.022 | AC48: Auto & Truck Expenses | AD48: 26955 | AE48: 0.027 | AG48: Auto & Truck Expenses | AH48: 20873 | AI48: 0.021 | AK48: Auto & Truck Expenses | AL48: 37542 | AM48: 0.038 | AO48: Auto & Truck Expenses | AP48: 54594 | AQ48: 0.055 | AS48: Auto & Truck Expenses | AT48: 66930 | AU48: 0.067 | AW48: Auto & Truck Expenses | AX48: 36722 | AY48: 0.037 | BA48: Auto & Truck Expenses | BB48: 33166 | BC48: 0.033 | BE48: Auto & Truck Expenses | BF48: 99527 | BG48: 0.1 | BI48: Auto & Truck Expenses | BJ48: 39588 | BK48: 0.04 | BM48: Auto & Truck Expenses | BN48: 314998 | BO48: 0.315 | BQ48: Auto & Truck Expenses | BR48: 172985 | BS48: 0.173 | BU48: Auto & Truck Expenses | BV48: 166318 | BW48: 0.166 | BY48: Auto & Truck Expenses | BZ48: 119513 | CA48: 0.12 | CC48: Auto & Truck Expenses | CD48: 24080 | CE48: 0.024 | CG48: Auto & Truck Expenses | CH48: 24590 | CI48: 0.025
C49: 44 | D49: 58 | E49: ) | F49: Services - Architectural Services | I49: Depreciation | J49: 30313 | K49: 0.03 | M49: Depreciation | N49: 28729 | O49: 0.029 | Q49: Depreciation | R49: 29766 | S49: 0.03 | U49: Depreciation | V49: 18289 | W49: 0.018 | Y49: Depreciation | Z49: 15588 | AA49: 0.016 | AC49: Depreciation | AD49: 18993 | AE49: 0.019 | AG49: Depreciation | AH49: 35867 | AI49: 0.036 | AK49: Depreciation | AL49: 27304 | AM49: 0.027 | AO49: Depreciation | AP49: 27401 | AQ49: 0.027 | AS49: Depreciation | AT49: 23804 | AU49: 0.024 | AW49: Depreciation | AX49: 10382 | AY49: 0.01 | BA49: Depreciation | BB49: 38780 | BC49: 0.039 | BE49: Depreciation | BF49: 65123 | BG49: 0.065 | BI49: Depreciation | BJ49: 38916 | BK49: 0.039 | BM49: Depreciation | BN49: 11047 | BO49: 0.011 | BQ49: Depreciation | BR49: 84539 | BS49: 0.085 | BU49: Depreciation | BV49: 99676 | BW49: 0.1 | BY49: Depreciation | BZ49: 28767 | CA49: 0.029 | CC49: Depreciation | CD49: 12948 | CE49: 0.013 | CG49: Depreciation | CH49: 11552 | CI49: 0.012
C50: 45 | D50: 59 | E50: ) | F50: Services - Certified Public Accountants | I50: Employee Benefits | J50: 1232 | K50: 0.001 | M50: Employee Benefits | N50: 5075 | O50: 0.005 | Q50: Employee Benefits | R50: 489 | S50: 0 | U50: Employee Benefits | V50: 4939 | W50: 0.005 | Y50: Employee Benefits | Z50: 3341 | AA50: 0.003 | AC50: Employee Benefits | AD50: 935 | AE50: 0.001 | AG50: Employee Benefits | AH50: 4104 | AI50: 0.004 | AK50: Employee Benefits | AL50: 2302 | AM50: 0.002 | AO50: Employee Benefits | AP50: 2545 | AQ50: 0.003 | AS50: Employee Benefits | AT50: 1242 | AU50: 0.001 | AW50: Employee Benefits | AX50: 1352 | AY50: 0.001 | BA50: Employee Benefits | BB50: 898 | BC50: 0.001 | BE50: Employee Benefits | BF50: 8724 | BG50: 0.009 | BI50: Employee Benefits | BJ50: 5141 | BK50: 0.005 | BM50: Employee Benefits | BN50: 2 | BO50: 0 | BQ50: Employee Benefits | BR50: 922 | BS50: 0.001 | BU50: Employee Benefits | BV50: 999 | BW50: 0.001 | BY50: Employee Benefits | BZ50: 42 | CA50: 0 | CC50: Employee Benefits | CD50: 899 | CE50: 0.001 | CG50: Employee Benefits | CH50: 1065 | CI50: 0.001
C51: 46 | D51: 60 | E51: ) | F51: Services - Computer Programming & Systems Design | I51: Home Office Business Expenses | J51: 19797 | K51: 0.02 | M51: Home Office Business Expenses | N51: 11208 | O51: 0.011 | Q51: Home Office Business Expenses | R51: 5559 | S51: 0.006 | U51: Home Office Business Expenses | V51: 4043 | W51: 0.004 | Y51: Home Office Business Expenses | Z51: 3762 | AA51: 0.004 | AC51: Home Office Business Expenses | AD51: 12207 | AE51: 0.012 | AG51: Home Office Business Expenses | AH51: 10598 | AI51: 0.011 | AK51: Home Office Business Expenses | AL51: 10706 | AM51: 0.011 | AO51: Home Office Business Expenses | AP51: 8785 | AQ51: 0.009 | AS51: Home Office Business Expenses | AT51: 5775 | AU51: 0.006 | AW51: Home Office Business Expenses | AX51: 29341 | AY51: 0.029 | BA51: Home Office Business Expenses | BB51: 14561 | BC51: 0.015 | BE51: Home Office Business Expenses | BF51: 13229 | BG51: 0.013 | BI51: Home Office Business Expenses | BJ51: 11821 | BK51: 0.012 | BM51: Home Office Business Expenses | BN51: 1290 | BO51: 0.001 | BQ51: Home Office Business Expenses | BR51: 1384 | BS51: 0.001 | BU51: Home Office Business Expenses | BV51: 1455 | BW51: 0.001 | BY51: Home Office Business Expenses | BZ51: 568 | CA51: 0.001 | CC51: Home Office Business Expenses | CD51: 3105 | CE51: 0.003 | CG51: Home Office Business Expenses | CH51: 3502 | CI51: 0.004
C52: 47 | D52: 61 | E52: ) | F52: Services - Drafting & Related Services | I52: Insurance | J52: 4202 | K52: 0.004 | M52: Insurance | N52: 13200 | O52: 0.013 | Q52: Insurance | R52: 3439 | S52: 0.003 | U52: Insurance | V52: 11391 | W52: 0.011 | Y52: Insurance | Z52: 13396 | AA52: 0.013 | AC52: Insurance | AD52: 3891 | AE52: 0.004 | AG52: Insurance | AH52: 10400 | AI52: 0.01 | AK52: Insurance | AL52: 9988 | AM52: 0.01 | AO52: Insurance | AP52: 5596 | AQ52: 0.006 | AS52: Insurance | AT52: 5919 | AU52: 0.006 | AW52: Insurance | AX52: 5110 | AY52: 0.005 | BA52: Insurance | BB52: 4497 | BC52: 0.004 | BE52: Insurance | BF52: 17336 | BG52: 0.017 | BI52: Insurance | BJ52: 9454 | BK52: 0.009 | BM52: Insurance | BN52: 13946 | BO52: 0.014 | BQ52: Insurance | BR52: 43828 | BS52: 0.044 | BU52: Insurance | BV52: 42313 | BW52: 0.042 | BY52: Insurance | BZ52: 48058 | CA52: 0.048 | CC52: Insurance | CD52: 5278 | CE52: 0.005 | CG52: Insurance | CH52: 4666 | CI52: 0.005
C53: 48 | D53: 62 | E53: ) | F53: Services - Educational (Excluding Schools) | I53: Interest Expense | J53: 2742 | K53: 0.003 | M53: Interest Expense | N53: 5120 | O53: 0.005 | Q53: Interest Expense | R53: 2827 | S53: 0.003 | U53: Interest Expense | V53: 7373 | W53: 0.007 | Y53: Interest Expense | Z53: 6858 | AA53: 0.007 | AC53: Interest Expense | AD53: 2904 | AE53: 0.003 | AG53: Interest Expense | AH53: 3513 | AI53: 0.004 | AK53: Interest Expense | AL53: 9530 | AM53: 0.01 | AO53: Interest Expense | AP53: 9405 | AQ53: 0.009 | AS53: Interest Expense | AT53: 7977 | AU53: 0.008 | AW53: Interest Expense | AX53: 5173 | AY53: 0.005 | BA53: Interest Expense | BB53: 5150 | BC53: 0.005 | BE53: Interest Expense | BF53: 24029 | BG53: 0.024 | BI53: Interest Expense | BJ53: 14258 | BK53: 0.014 | BM53: Interest Expense | BN53: 2745 | BO53: 0.003 | BQ53: Interest Expense | BR53: 17020 | BS53: 0.017 | BU53: Interest Expense | BV53: 25077 | BW53: 0.025 | BY53: Interest Expense | BZ53: 14631 | CA53: 0.015 | CC53: Interest Expense | CD53: 5490 | CE53: 0.005 | CG53: Interest Expense | CH53: 4473 | CI53: 0.004
C54: 49 | D54: 63 | E54: ) | F54: Services - Engineering Services | I54: Legal & Professional Services | J54: 6358 | K54: 0.006 | M54: Legal & Professional Services | N54: 11578 | O54: 0.012 | Q54: Legal & Professional Services | R54: 5335 | S54: 0.005 | U54: Legal & Professional Services | V54: 6962 | W54: 0.007 | Y54: Legal & Professional Services | Z54: 18226 | AA54: 0.018 | AC54: Legal & Professional Services | AD54: 13524 | AE54: 0.014 | AG54: Legal & Professional Services | AH54: 2745 | AI54: 0.003 | AK54: Legal & Professional Services | AL54: 8381 | AM54: 0.008 | AO54: Legal & Professional Services | AP54: 8368 | AQ54: 0.008 | AS54: Legal & Professional Services | AT54: 8850 | AU54: 0.009 | AW54: Legal & Professional Services | AX54: 14988 | AY54: 0.015 | BA54: Legal & Professional Services | BB54: 6444 | BC54: 0.006 | BE54: Legal & Professional Services | BF54: 15683 | BG54: 0.016 | BI54: Legal & Professional Services | BJ54: 7660 | BK54: 0.008 | BM54: Legal & Professional Services | BN54: 4318 | BO54: 0.004 | BQ54: Legal & Professional Services | BR54: 4881 | BS54: 0.005 | BU54: Legal & Professional Services | BV54: 4220 | BW54: 0.004 | BY54: Legal & Professional Services | BZ54: 2679 | CA54: 0.003 | CC54: Legal & Professional Services | CD54: 2745 | CE54: 0.003 | CG54: Legal & Professional Services | CH54: 2790 | CI54: 0.003
C55: 50 | D55: 64 | E55: ) | F55: Services - Information & Data Processing Services | I55: Meals & Entertainment | J55: 7181 | K55: 0.007 | M55: Meals & Entertainment | N55: 4725 | O55: 0.005 | Q55: Meals & Entertainment | R55: 5289 | S55: 0.005 | U55: Meals & Entertainment | V55: 10977 | W55: 0.011 | Y55: Meals & Entertainment | Z55: 5531 | AA55: 0.006 | AC55: Meals & Entertainment | AD55: 9165 | AE55: 0.009 | AG55: Meals & Entertainment | AH55: 6402 | AI55: 0.006 | AK55: Meals & Entertainment | AL55: 5629 | AM55: 0.006 | AO55: Meals & Entertainment | AP55: 5546 | AQ55: 0.006 | AS55: Meals & Entertainment | AT55: 10582 | AU55: 0.011 | AW55: Meals & Entertainment | AX55: 13204 | AY55: 0.013 | BA55: Meals & Entertainment | BB55: 4953 | BC55: 0.005 | BE55: Meals & Entertainment | BF55: 2124 | BG55: 0.002 | BI55: Meals & Entertainment | BJ55: 5207 | BK55: 0.005 | BM55: Meals & Entertainment | BN55: 2218 | BO55: 0.002 | BQ55: Meals & Entertainment | BR55: 7420 | BS55: 0.007 | BU55: Meals & Entertainment | BV55: 25016 | BW55: 0.025 | BY55: Meals & Entertainment | BZ55: 3916 | CA55: 0.004 | CC55: Meals & Entertainment | CD55: 3389 | CE55: 0.003 | CG55: Meals & Entertainment | CH55: 3273 | CI55: 0.003
C56: 51 | D56: 65 | E56: ) | F56: Services - Insurance Agencies & Brokerages | I56: Office Expense | J56: 14187 | K56: 0.014 | M56: Office Expense | N56: 15470 | O56: 0.015 | Q56: Office Expense | R56: 15036 | S56: 0.015 | U56: Office Expense | V56: 26910 | W56: 0.027 | Y56: Office Expense | Z56: 28540 | AA56: 0.029 | AC56: Office Expense | AD56: 14723 | AE56: 0.015 | AG56: Office Expense | AH56: 56100 | AI56: 0.056 | AK56: Office Expense | AL56: 13483 | AM56: 0.013 | AO56: Office Expense | AP56: 21660 | AQ56: 0.022 | AS56: Office Expense | AT56: 22835 | AU56: 0.023 | AW56: Office Expense | AX56: 13758 | AY56: 0.014 | BA56: Office Expense | BB56: 14743 | BC56: 0.015 | BE56: Office Expense | BF56: 13477 | BG56: 0.013 | BI56: Office Expense | BJ56: 25872 | BK56: 0.026 | BM56: Office Expense | BN56: 7189 | BO56: 0.007 | BQ56: Office Expense | BR56: 4111 | BS56: 0.004 | BU56: Office Expense | BV56: 3538 | BW56: 0.004 | BY56: Office Expense | BZ56: 5688 | CA56: 0.006 | CC56: Office Expense | CD56: 4838 | CE56: 0.005 | CG56: Office Expense | CH56: 4319 | CI56: 0.004
C57: 52 | D57: 66 | E57: ) | F57: Services - Legal Services | I57: Retirement Plans | J57: 1231 | K57: 0.001 | M57: Retirement Plans | N57: 1564 | O57: 0.002 | Q57: Retirement Plans | R57: 475 | S57: 0 | U57: Retirement Plans | V57: 2349 | W57: 0.002 | Y57: Retirement Plans | Z57: 2699 | AA57: 0.003 | AC57: Retirement Plans | AD57: 688 | AE57: 0.001 | AG57: Retirement Plans | AH57: 1142 | AI57: 0.001 | AK57: Retirement Plans | AL57: 1952 | AM57: 0.002 | AO57: Retirement Plans | AP57: 1491 | AQ57: 0.001 | AS57: Retirement Plans | AT57: 1035 | AU57: 0.001 | AW57: Retirement Plans | AX57: 900 | AY57: 0.001 | BA57: Retirement Plans | BB57: 281 | BC57: 0 | BE57: Retirement Plans | BF57: 337 | BG57: 0 | BI57: Retirement Plans | BJ57: 1064 | BK57: 0.001 | BM57: Retirement Plans | BN57: 3 | BO57: 0 | BQ57: Retirement Plans | BR57: 651 | BS57: 0.001 | BU57: Retirement Plans | BV57: 147 | BW57: 0 | BY57: Retirement Plans | BZ57: 1420 | CA57: 0.001 | CC57: Retirement Plans | CD57: 277 | CE57: 0 | CG57: Retirement Plans | CH57: 324 | CI57: 0
C58: 53 | D58: 67 | E58: ) | F58: Services - Management & Technical Consulting | I58: Rent - Equipment | J58: 3313 | K58: 0.003 | M58: Rent - Equipment | N58: 3360 | O58: 0.003 | Q58: Rent - Equipment | R58: 2945 | S58: 0.003 | U58: Rent - Equipment | V58: 11043 | W58: 0.011 | Y58: Rent - Equipment | Z58: 7435 | AA58: 0.007 | AC58: Rent - Equipment | AD58: 5604 | AE58: 0.006 | AG58: Rent - Equipment | AH58: 16066 | AI58: 0.016 | AK58: Rent - Equipment | AL58: 6675 | AM58: 0.007 | AO58: Rent - Equipment | AP58: 8735 | AQ58: 0.009 | AS58: Rent - Equipment | AT58: 7807 | AU58: 0.008 | AW58: Rent - Equipment | AX58: 1730 | AY58: 0.002 | BA58: Rent - Equipment | BB58: 9418 | BC58: 0.009 | BE58: Rent - Equipment | BF58: 9205 | BG58: 0.009 | BI58: Rent - Equipment | BJ58: 6974 | BK58: 0.007 | BM58: Rent - Equipment | BN58: 15249 | BO58: 0.015 | BQ58: Rent - Equipment | BR58: 25523 | BS58: 0.026 | BU58: Rent - Equipment | BV58: 31009 | BW58: 0.031 | BY58: Rent - Equipment | BZ58: 102154 | CA58: 0.102 | CC58: Rent - Equipment | CD58: 1503 | CE58: 0.002 | CG58: Rent - Equipment | CH58: 3164 | CI58: 0.003
C59: 54 | D59: 68 | E59: ) | F59: Services - Market Research & Public Opinion Polling | I59: Rent - Office & Business Property | J59: 48545 | K59: 0.049 | M59: Rent - Office & Business Property | N59: 14929 | O59: 0.015 | Q59: Rent - Office & Business Property | R59: 26283 | S59: 0.026 | U59: Rent - Office & Business Property | V59: 32172 | W59: 0.032 | Y59: Rent - Office & Business Property | Z59: 40141 | AA59: 0.04 | AC59: Rent - Office & Business Property | AD59: 11029 | AE59: 0.011 | AG59: Rent - Office & Business Property | AH59: 11848 | AI59: 0.012 | AK59: Rent - Office & Business Property | AL59: 16831 | AM59: 0.017 | AO59: Rent - Office & Business Property | AP59: 18055 | AQ59: 0.018 | AS59: Rent - Office & Business Property | AT59: 12216 | AU59: 0.012 | AW59: Rent - Office & Business Property | AX59: 3893 | AY59: 0.004 | BA59: Rent - Office & Business Property | BB59: 17347 | BC59: 0.017 | BE59: Rent - Office & Business Property | BF59: 29409 | BG59: 0.029 | BI59: Rent - Office & Business Property | BJ59: 22284 | BK59: 0.022 | BM59: Rent - Office & Business Property | BN59: 5444 | BO59: 0.005 | BQ59: Rent - Office & Business Property | BR59: 5524 | BS59: 0.006 | BU59: Rent - Office & Business Property | BV59: 5825 | BW59: 0.006 | BY59: Rent - Office & Business Property | BZ59: 21538 | CA59: 0.022 | CC59: Rent - Office & Business Property | CD59: 9606 | CE59: 0.01 | CG59: Rent - Office & Business Property | CH59: 11506 | CI59: 0.012
C60: 55 | D60: 69 | E60: ) | F60: Services - Other Business Services | I60: Repairs | J60: 6816 | K60: 0.007 | M60: Repairs | N60: 3332 | O60: 0.003 | Q60: Repairs | R60: 1216 | S60: 0.001 | U60: Repairs | V60: 5297 | W60: 0.005 | Y60: Repairs | Z60: 3918 | AA60: 0.004 | AC60: Repairs | AD60: 1748 | AE60: 0.002 | AG60: Repairs | AH60: 2579 | AI60: 0.003 | AK60: Repairs | AL60: 6662 | AM60: 0.007 | AO60: Repairs | AP60: 2328 | AQ60: 0.002 | AS60: Repairs | AT60: 5640 | AU60: 0.006 | AW60: Repairs | AX60: 1265 | AY60: 0.001 | BA60: Repairs | BB60: 2651 | BC60: 0.003 | BE60: Repairs | BF60: 5801 | BG60: 0.006 | BI60: Repairs | BJ60: 11234 | BK60: 0.011 | BM60: Repairs | BN60: 13310 | BO60: 0.013 | BQ60: Repairs | BR60: 62794 | BS60: 0.063 | BU60: Repairs | BV60: 74543 | BW60: 0.075 | BY60: Repairs | BZ60: 41603 | CA60: 0.042 | CC60: Repairs | CD60: 4372 | CE60: 0.004 | CG60: Repairs | CH60: 4244 | CI60: 0.004
C61: 56 | D61: 70 | E61: ) | F61: Services - Publishing Services | I61: Supplies | J61: 27232 | K61: 0.027 | M61: Supplies | N61: 13369 | O61: 0.013 | Q61: Supplies | R61: 13112 | S61: 0.013 | U61: Supplies | V61: 12805 | W61: 0.013 | Y61: Supplies | Z61: 9717 | AA61: 0.01 | AC61: Supplies | AD61: 13146 | AE61: 0.013 | AG61: Supplies | AH61: 17630 | AI61: 0.018 | AK61: Supplies | AL61: 36661 | AM61: 0.037 | AO61: Supplies | AP61: 14688 | AQ61: 0.015 | AS61: Supplies | AT61: 12952 | AU61: 0.013 | AW61: Supplies | AX61: 7144 | AY61: 0.007 | BA61: Supplies | BB61: 35425 | BC61: 0.035 | BE61: Supplies | BF61: 20566 | BG61: 0.021 | BI61: Supplies | BJ61: 21287 | BK61: 0.021 | BM61: Supplies | BN61: 18010 | BO61: 0.018 | BQ61: Supplies | BR61: 13465 | BS61: 0.013 | BU61: Supplies | BV61: 16801 | BW61: 0.017 | BY61: Supplies | BZ61: 7371 | CA61: 0.007 | CC61: Supplies | CD61: 6773 | CE61: 0.007 | CG61: Supplies | CH61: 13321 | CI61: 0.013
C62: 57 | D62: 71 | E62: ) | F62: Services - Real Estate Agents, Brokers & Managers | I62: Taxes - Business & Payroll | J62: 6592 | K62: 0.007 | M62: Taxes - Business & Payroll | N62: 8691 | O62: 0.009 | Q62: Taxes - Business & Payroll | R62: 9506 | S62: 0.01 | U62: Taxes - Business & Payroll | V62: 12070 | W62: 0.012 | Y62: Taxes - Business & Payroll | Z62: 13618 | AA62: 0.014 | AC62: Taxes - Business & Payroll | AD62: 4230 | AE62: 0.004 | AG62: Taxes - Business & Payroll | AH62: 6455 | AI62: 0.006 | AK62: Taxes - Business & Payroll | AL62: 14501 | AM62: 0.015 | AO62: Taxes - Business & Payroll | AP62: 8050 | AQ62: 0.008 | AS62: Taxes - Business & Payroll | AT62: 5723 | AU62: 0.006 | AW62: Taxes - Business & Payroll | AX62: 3247 | AY62: 0.003 | BA62: Taxes - Business & Payroll | BB62: 6697 | BC62: 0.007 | BE62: Taxes - Business & Payroll | BF62: 19969 | BG62: 0.02 | BI62: Taxes - Business & Payroll | BJ62: 12796 | BK62: 0.013 | BM62: Taxes - Business & Payroll | BN62: 4190 | BO62: 0.004 | BQ62: Taxes - Business & Payroll | BR62: 19621 | BS62: 0.02 | BU62: Taxes - Business & Payroll | BV62: 22884 | BW62: 0.023 | BY62: Taxes - Business & Payroll | BZ62: 10688 | CA62: 0.011 | CC62: Taxes - Business & Payroll | CD62: 6401 | CE62: 0.006 | CG62: Taxes - Business & Payroll | CH62: 5915 | CI62: 0.006
C63: 58 | D63: 72 | E63: ) | F63: Services - Scientific Research & Development | I63: Travel | J63: 42766 | K63: 0.043 | M63: Travel | N63: 28397 | O63: 0.028 | Q63: Travel | R63: 12566 | S63: 0.013 | U63: Travel | V63: 12525 | W63: 0.013 | Y63: Travel | Z63: 8355 | AA63: 0.008 | AC63: Travel | AD63: 38054 | AE63: 0.038 | AG63: Travel | AH63: 64142 | AI63: 0.064 | AK63: Travel | AL63: 15726 | AM63: 0.016 | AO63: Travel | AP63: 18187 | AQ63: 0.018 | AS63: Travel | AT63: 8256 | AU63: 0.008 | AW63: Travel | AX63: 90565 | AY63: 0.091 | BA63: Travel | BB63: 9110 | BC63: 0.009 | BE63: Travel | BF63: 647 | BG63: 0.001 | BI63: Travel | BJ63: 11232 | BK63: 0.011 | BM63: Travel | BN63: 8126 | BO63: 0.008 | BQ63: Travel | BR63: 5234 | BS63: 0.005 | BU63: Travel | BV63: 8196 | BW63: 0.008 | BY63: Travel | BZ63: 1790 | CA63: 0.002 | CC63: Travel | CD63: 9894 | CE63: 0.01 | CG63: Travel | CH63: 6044 | CI63: 0.006
C64: 59 | D64: 73 | E64: ) | F64: Services - Specialized Design | I64: Utilities | J64: 18490 | K64: 0.018 | M64: Utilities | N64: 13599 | O64: 0.014 | Q64: Utilities | R64: 17615 | S64: 0.018 | U64: Utilities | V64: 28463 | W64: 0.028 | Y64: Utilities | Z64: 21144 | AA64: 0.021 | AC64: Utilities | AD64: 15152 | AE64: 0.015 | AG64: Utilities | AH64: 34306 | AI64: 0.034 | AK64: Utilities | AL64: 20302 | AM64: 0.02 | AO64: Utilities | AP64: 17131 | AQ64: 0.017 | AS64: Utilities | AT64: 20441 | AU64: 0.02 | AW64: Utilities | AX64: 17511 | AY64: 0.018 | BA64: Utilities | BB64: 17538 | BC64: 0.018 | BE64: Utilities | BF64: 25549 | BG64: 0.026 | BI64: Utilities | BJ64: 29052 | BK64: 0.029 | BM64: Utilities | BN64: 10898 | BO64: 0.011 | BQ64: Utilities | BR64: 11520 | BS64: 0.012 | BU64: Utilities | BV64: 11784 | BW64: 0.012 | BY64: Utilities | BZ64: 12349 | CA64: 0.012 | CC64: Utilities | CD64: 9794 | CE64: 0.01 | CG64: Utilities | CH64: 10553 | CI64: 0.011
C65: 60 | D65: 74 | E65: ) | F65: Services - Surveying & Mapping Services | I65: Other Expenses | J65: 97404 | K65: 0.097 | M65: Other Expenses | N65: 64241 | O65: 0.064 | Q65: Other Expenses | R65: 95130 | S65: 0.095 | U65: Other Expenses | V65: 127016 | W65: 0.127 | Y65: Other Expenses | Z65: 123057 | AA65: 0.123 | AC65: Other Expenses | AD65: 83359 | AE65: 0.083 | AG65: Other Expenses | AH65: 139999 | AI65: 0.14 | AK65: Other Expenses | AL65: 101397 | AM65: 0.101 | AO65: Other Expenses | AP65: 197660 | AQ65: 0.198 | AS65: Other Expenses | AT65: 138617 | AU65: 0.139 | AW65: Other Expenses | AX65: 97259 | AY65: 0.097 | BA65: Other Expenses | BB65: 63376 | BC65: 0.063 | BE65: Other Expenses | BF65: 92987 | BG65: 0.093 | BI65: Other Expenses | BJ65: 107011 | BK65: 0.107 | BM65: Other Expenses | BN65: 89962 | BO65: 0.09 | BQ65: Other Expenses | BR65: 131963 | BS65: 0.132 | BU65: Other Expenses | BV65: 149609 | BW65: 0.15 | BY65: Other Expenses | BZ65: 255889 | CA65: 0.256 | CC65: Other Expenses | CD65: 40997 | CE65: 0.041 | CG65: Other Expenses | CH65: 39252 | CI65: 0.039
C66: 61 | D66: 75 | E66: ) | F66: Services - Tax & Payroll Services | I66: Total Expenses as % of Revenue | J66: 502716 | K66: 0.503 | M66: Total Expenses as % of Revenue | N66: 493593 | O66: 0.494 | Q66: Total Expenses as % of Revenue | R66: 534474 | S66: 0.534 | U66: Total Expenses as % of Revenue | V66: 525676 | W66: 0.526 | Y66: Total Expenses as % of Revenue | Z66: 515917 | AA66: 0.516 | AC66: Total Expenses as % of Revenue | AD66: 370603 | AE66: 0.371 | AG66: Total Expenses as % of Revenue | AH66: 673862 | AI66: 0.674 | AK66: Total Expenses as % of Revenue | AL66: 610086 | AM66: 0.61 | AO66: Total Expenses as % of Revenue | AP66: 691156 | AQ66: 0.691 | AS66: Total Expenses as % of Revenue | AT66: 476220 | AU66: 0.476 | AW66: Total Expenses as % of Revenue | AX66: 404058 | AY66: 0.404 | BA66: Total Expenses as % of Revenue | BB66: 713232 | BC66: 0.713 | BE66: Total Expenses as % of Revenue | BF66: 691956 | BG66: 0.692 | BI66: Total Expenses as % of Revenue | BJ66: 526421 | BK66: 0.526 | BM66: Total Expenses as % of Revenue | BN66: 672943 | BO66: 0.673 | BQ66: Total Expenses as % of Revenue | BR66: 792223 | BS66: 0.792 | BU66: Total Expenses as % of Revenue | BV66: 816729 | BW66: 0.817 | BY66: Total Expenses as % of Revenue | BZ66: 690404 | CA66: 0.69 | CC66: Total Expenses as % of Revenue | CD66: 847732 | CE66: 0.848 | CG66: Total Expenses as % of Revenue | CH66: 849679 | CI66: 0.85
C67: 62 | D67: 76 | E67: ) | F67: Transportation - Couriers & Messengers
C68: 63 | D68: 77 | E68: ) | F68: Transportation - Local Trucking & Freight
C69: 64 | D69: 78 | E69: ) | F69: Transportation - Long-distance & Specialized Freight
C70: 65 | D70: 79 | E70: ) | F70: Transportation - Taxi & Limousine Services
C71: 66 | D71: 80 | E71: ) | F71: Wholesaling - Durable Goods
C72: 67 | D72: 81 | E72: ) | F72: Wholesaling – Non-durable Goods
F75: *The preceding results report nationwide averages for profitable, one owner unincorporated businesses. Net income to Owner is prior to federal or state income taxes, and excludes any compensation or other benefits such as health insurance and retirement plan contributions made by the business on behalf of the owner.

Sheet Industry Analysis
D5: Category | E5: Actual | G5: Industry | I5: Variance | K5: Trend
D6: Services - Publishing Services | E6: $ | F6: % | G6: $ | H6: % | I6: $ | J6: % | K6: Your Business vs.
D7: 56 | K7: Your Industry
D8: Total Revenue (Sales) | E8: 2010000 | F8: =E8/E8 -> 1 | G8: =E8 -> 2010000 | H8: 1 | I8: =E8-G8 -> 0 | J8: 0 | K8: N/A
D9: Total Expenses as % of Revenue | E9: 1663353 | F9: =E9/$E$8 -> 0.827538806 | G9: =$E$8*H9 -> 1388910 | H9: 0.691 | I9: 274443 | J9: 0.136538806 | K9: =IF(I9<=0,"Positive Trend","Negative Trend") -> Negative Trend
D10: Net Income to Owner as % of Revenue | E10: 346647 | F10: =E10/$E$8 -> 0.172461194 | G10: =$E$8*H10 -> 621090 | H10: 0.309 | I10: -274443 | J10: -0.136538806 | K10: =IF(I10>=0,"Positive Trend","Negative Trend") -> Negative Trend
D12: Detail of Expenses (as % of Revenue)
D13: Cost of Goods Sold | E13: 945000 | F13: =E13/$E$8 -> 0.4701492537 | G13: =$E$8*H13 -> 404010 | H13: 0.201 | I13: =IF(E13=0,0,E13-G13) -> 540990 | J13: =IF(F13=0,0,F13-H13) -> 0.2691492537 | K13: =IF(I13<=0,"Positive Trend","Negative Trend") -> Negative Trend
D14: Salaries & Wages | E14: 190000 | F14: 0.09452736318 | G14: =$E$8*H14 -> 90450 | H14: 0.045 | I14: 99550 | J14: 0.04952736318 | K14: =IF(I14<=0,"Positive Trend","Negative Trend") -> Negative Trend
D15: Advertising | E15: 50000 | F15: 0.02487562189 | G15: 30150 | H15: 0.015 | I15: 19850 | J15: 0.009875621891 | K15: Negative Trend
D16: Auto & Truck Expenses | E16: 30000 | F16: 0.01492537313 | G16: 110550 | H16: 0.055 | I16: -80550 | J16: -0.04007462687 | K16: Positive Trend
D17: Depreciation | E17: 5000 | F17: 0.002487562189 | G17: 54270 | H17: 0.027 | I17: -49270 | J17: -0.02451243781 | K17: Positive Trend
D18: Employee Benefits | E18: 3000 | F18: 0.001492537313 | G18: 6030 | H18: 0.003 | I18: -3030 | J18: -0.001507462687 | K18: Positive Trend
D19: Home Office Business Expenses | E19: 1000 | F19: 0.0004975124378 | G19: 18090 | H19: 0.009 | I19: -17090 | J19: -0.008502487562 | K19: Positive Trend
D20: Insurance | E20: 1000 | F20: 0.0004975124378 | G20: 12060 | H20: 0.006 | I20: -11060 | J20: -0.005502487562 | K20: Positive Trend
D21: Interest Expense | E21: 2133 | F21: 0.00106119403 | G21: 18090 | H21: 0.009 | I21: -15957 | J21: -0.00793880597 | K21: Positive Trend
D22: Legal & Professional Services | E22: 11000 | F22: 0.005472636816 | G22: 16080 | H22: 0.008 | I22: -5080 | J22: -0.002527363184 | K22: Positive Trend
D23: Meals & Entertainment | E23: 4000 | F23: 0.001990049751 | G23: 12060 | H23: 0.006 | I23: -8060 | J23: -0.004009950249 | K23: Positive Trend
D24: Office Expense | E24: 6000 | F24: 0.002985074627 | G24: 44220 | H24: 0.022 | I24: -38220 | J24: -0.01901492537 | K24: Positive Trend
D25: Retirement Plans | E25: 1000 | F25: 0.0004975124378 | G25: 2010 | H25: 0.001 | I25: -1010 | J25: -0.0005024875622 | K25: Positive Trend
D26: Rent - Equipment | E26: 3000 | F26: 0.001492537313 | G26: 18090 | H26: 0.009 | I26: -15090 | J26: -0.007507462687 | K26: Positive Trend
D27: Rent - Office & Business Property | E27: 1000 | F27: 0.0004975124378 | G27: 36180 | H27: 0.018 | I27: -35180 | J27: -0.01750248756 | K27: Positive Trend
D28: Repairs | E28: 1000 | F28: 0.0004975124378 | G28: 4020 | H28: 0.002 | I28: -3020 | J28: -0.001502487562 | K28: Positive Trend
D29: Supplies | E29: 1000 | F29: 0.0004975124378 | G29: 30150 | H29: 0.015 | I29: -29150 | J29: -0.01450248756 | K29: Positive Trend
D30: Taxes - Business & Payroll | E30: 1000 | F30: 0.0004975124378 | G30: 16080 | H30: 0.008 | I30: -15080 | J30: -0.007502487562 | K30: Positive Trend
D31: Travel | E31: 6000 | F31: 0.002985074627 | G31: 36180 | H31: 0.018 | I31: -30180 | J31: -0.01501492537 | K31: Positive Trend
D32: Utilities | E32: 0 | F32: 0 | G32: 34170 | H32: 0.017 | I32: =IF(E32=0,0,E32-G32) -> 0 | J32: =IF(F32=0,0,F32-H32) -> 0 | K32: =IF(I32<=0,"Positive Trend","Negative Trend") -> Positive Trend
D33: Other Expenses | E33: 0 | F33: 0 | G33: =$E$8*H33 -> 397980 | H33: 0.198 | I33: =IF(E33=0,0,E33-G33) -> 0 | J33: =IF(F33=0,0,F33-H33) -> 0 | K33: Positive Trend
D34: Total Expenses as % of Revenue | E34: =SUM(E13:E33) -> 1262133 | F34: 0.6279268657 | G34: 1388910 | H34: 0.691 | I34: =E34-G34 -> -126777 | J34: =F34-H34 -> -0.06307313433 | K34: Positive Trend
I35: Number of Positives | K35: =COUNTIF(K9:K34,"Positive Trend") -> 19
I36: Number of Negatives | K36: =COUNTIF(K9:K34,"Negative Trend") -> 5
